{"text_format":"1","workbook":"xlsx","n_sheets":16,"sheets":["Output","Input","Considerations","Sortie","Entrée","Considérations","Raw Data","Notes","List","List French","LTCGE","LTCGE French","RRIF","RRIF French","Estate tax rates","Estate tax rates French"],"not_rendered":{"charts":2,"images":12,"macros":1,"external_links":0,"defined_names":248,"comments":2,"pivot_tables":0},"unopened":[],"bounds":{"document_bytes":16777216,"sheet_cells":100000,"rows_first":2000,"rows_last":500,"rows_between":2000,"halvings":0,"cell_chars":16384,"cell_head_chars":4096},"cells_cut":0,"cells_raw":0,"read":"whole","date_system":"1900"}

{"sheet":"Output","index":0,"n_rows":30,"n_cols":17,"rows_kept":30,"cut":false,"hidden":false,"merged":[[27,1,27,16],[28,1,28,16],[29,1,29,16],[11,1,11,16],[17,3,18,6],[22,3,23,6],[16,3,16,6],[21,3,21,6],[15,1,15,16],[17,10,18,15],[19,10,20,15],[21,10,22,15]]}
[]
[]
[]
[]
[]
[]
[]
[]
[]
[null,null,null,null,null,null,null,null,null,null,null,null,null,null,null,null,"v2026.02"]
[]
[null,"You’ve worked your whole life to build your wealth and would like your loved ones to continue enjoying the fruits of your hard work. However, there are taxes and expenses that must be paid in cash before your assets are transferred to your beneficiaries. Those taxes and expenses may be higher than you think and may significantly reduce the size of your estate available to your beneficiaries. Further, if your estate does not have enough liquid assets to pay off those expenses some of the other assets may have to be quickly sold for example: your home, cottage or vehicles."]
[null,"The following chart is an estimation of what could happen to your estate and the cash shortfall you will leave behind."]
[]
[]
[null,"Taxes and final expenses may shrink the estate you intend to leave behind for your beneficiary."]
[null,null,null,"You intend to leave this for your beneficiary:"]
[null,null,null,{"$f":"'Raw Data'!D22","v":0},null,null,null,null,null,null,"Expected reduction in estate due to liabilities, expenses and taxes:"]
[]
[null,null,null,null,null,null,null,null,null,null,{"$f":"ROUND(D18,1)-ROUND(D23,1)","v":{"$error":"#N/A"}}]
[]
[null,null,null,"This is what your beneficiary will likely receive:",null,null,null,null,null,null,"Consider including this amount in determining your total permanent life insurance need."]
[null,null,null,{"$f":"'Raw Data'!D19","v":{"$error":"#N/A"}}]
[]
[]
[]
[]
[null,"A death benefit from an RBC life insurance policy may be used to pay tax liabilities and other expenses, and avoid reduction in the estate available to the beneficiaries."]
[]
[null,{"$f":"\"Reach out and speak to \"&IF(Eng_Adv_Use_In_Printouts=\"Yes\",TRIM(Eng_Prepared_By),\"your RBC advisor\")&\" today!\"","v":"Reach out and speak to your RBC advisor today!"}]

{"sheet":"Input","index":1,"n_rows":148,"n_cols":80,"rows_kept":148,"cut":false,"hidden":false,"merged":[[128,20,128,24],[130,20,130,24],[36,2,36,84],[42,56,42,59],[8,11,8,12],[147,2,147,84],[74,79,74,83],[52,67,52,71],[54,67,54,71],[62,61,62,65],[64,67,64,71],[68,56,68,59],[56,56,56,59],[58,56,58,59],[143,3,143,19],[143,20,143,24],[136,20,136,24],[138,20,138,24],[140,20,140,24],[124,15,124,18],[130,15,130,18],[132,15,132,18],[134,15,134,18],[134,20,134,24],[124,20,124,24],[126,20,126,24],[28,3,28,7],[46,79,46,83],[132,20,132,24],[56,61,56,65],[50,56,50,59],[10,26,10,60],[38,79,38,83],[54,32,54,36],[50,27,50,28],[52,27,52,28],[15,2,15,84],[18,2,18,84],[19,2,19,84],[16,2,16,84],[17,2,17,84],[50,50,50,54],[46,38,46,42],[28,35,28,36],[28,46,28,47],[28,8,28,26],[38,44,38,48],[48,32,48,36],[40,79,40,83],[42,79,42,83],[46,44,46,48],[48,44,48,48],[38,50,38,54],[50,3,50,26],[28,62,28,63],[28,78,28,82],[24,2,24,84],[42,38,42,42],[42,27,42,28],[44,79,44,83],[44,61,44,65],[46,61,46,65],[34,2,34,84],[35,2,35,84],[42,61,42,65],[44,56,44,59],[42,3,42,6],[44,73,44,77],[38,32,38,36],[38,25,38,30],[38,38,38,42],[38,56,38,59],[52,56,52,59],[54,56,54,59],[48,61,48,65],[50,61,50,65],[52,61,52,65],[54,61,54,65],[48,56,48,59],[52,50,52,54],[54,50,54,54],[44,3,44,6],[42,50,42,54],[38,61,38,65],[40,61,40,65],[122,2,122,25],[104,73,104,77],[104,61,104,66],[94,67,94,71],[96,67,97,71],[101,73,101,77],[90,2,90,84],[114,28,114,33],[114,17,114,27],[114,35,114,50],[94,32,94,36],[114,10,114,15],[114,3,114,9],[114,51,114,56],[104,79,104,83],[110,2,110,84],[112,2,112,84],[92,79,92,83],[111,2,111,84],[96,32,97,36],[96,38,97,50],[96,51,97,55],[104,67,104,71],[121,2,121,25],[114,78,114,83],[114,62,114,77],[89,2,89,84],[88,2,88,84],[120,2,120,25],[79,61,79,66],[64,61,64,65],[48,27,48,28],[50,67,50,71],[76,79,76,83],[64,32,64,36],[66,32,66,36],[68,32,68,36],[66,50,66,54],[64,50,64,54],[60,32,60,36],[52,32,52,36],[56,32,56,36],[58,32,58,36],[52,44,52,48],[64,44,64,48],[58,61,58,65],[62,50,62,54],[48,79,48,83],[74,61,74,65],[68,61,68,65],[76,61,76,65],[66,61,66,65],[76,73,76,77],[4,16,4,59],[7,7,7,29],[46,56,46,59],[56,50,56,54],[60,27,60,28],[44,27,44,28],[46,27,46,28],[58,50,58,54],[44,50,44,54],[46,50,46,54],[48,50,48,54],[50,38,50,42],[52,38,52,42],[50,32,50,36],[25,2,25,84],[38,73,38,77],[42,73,42,77],[60,61,60,65],[26,2,26,84],[38,67,38,71],[42,44,42,48],[50,44,50,48],[48,3,48,26],[48,38,48,42],[82,26,82,60],[66,44,66,48],[68,44,68,48],[64,38,64,42],[60,56,60,59],[64,56,64,59],[66,56,66,59],[60,50,60,54],[66,38,66,42],[68,38,68,42],[68,50,68,54],[62,27,62,28],[62,32,62,36],[48,67,48,71],[79,79,79,83],[79,73,79,77],[58,79,58,83],[60,79,60,83],[62,79,62,83],[64,79,64,83],[72,73,72,77],[74,73,74,77],[70,73,70,77],[56,67,56,71],[62,67,62,71],[68,79,68,83],[66,79,66,83],[66,67,66,71],[68,67,68,71],[58,67,58,71],[60,67,60,71],[79,67,79,71],[50,79,50,83],[52,79,52,83],[54,79,54,83],[56,79,56,83]]}
[]
[]
[]
[]
[null,null,null,null,null,null,null,null,null,null,null,null,null,null,null,null,"Do not send this spreadsheet to your clients. Only the pdf printouts can be distributed."]
[]
[]
[null,null,"Prepared by:"]
[null,null,"Include in printouts:",null,null,null,null,null,null,null,null,"No"]
[]
[null,null,null,null,null,null,null,null,null,null,null,null,null,null,null,null,null,null,null,null,null,null,null,null,null,null,"ESTATE TRANSFER ESTIMATE v2026.02"]
[]
[]
[]
[]
[]
[null,null,"About this calculator"]
[]
[null,null,"The purpose of this calculator is to estimate the income tax and estate administration tax/probate fees that may become payable upon your death based on the assets you may own at that time and show its impact on your estate. The calculation assumes that you are either a single person or a last to die spouse/common law-partner."]
[null,null,"An RBC Permanent Life Insurance policy may provide an excellent solution to maximize your estate’s liquidity."]
[]
[]
[]
[]
[]
[null,null,"Client information"]
[]
[]
[null,null,null,"Client name  ",null,null,null,null,null,null,null,null,null,null,null,null,null,null,null,null,null,null,null,null,null,null,null,null,null,null,null,null,null,null,"Client age  ",null,null,null,null,null,null,null,null,null,null,"Comparison age",null,null,null,null,null,null,null,null,null,null,null,null,null,null,null,"Province of residence  ",null,null,null,null,null,null,null,null,null,null,null,null,null,null,null,"Marginal tax rate  "]
[]
[]
[]
[]
[]
[]
[null,null,"Asset information"]
[]
[]
[null,null,null,"Asset type",null,null,null,null,null,null,null,null,null,null,null,null,null,null,null,null,null,null,null,null,null,"Beneficiary designation",null,null,null,null,null,null,"ACB / cost",null,null,null,null,null,"Annual contribution",null,null,null,null,null,"Contribution years",null,null,null,null,null,"Current FMV",null,null,null,null,null,"Growth rate",null,null,null,null,"Future      value",null,null,null,null,null,"Taxable gain",null,null,null,null,null,"Taxable income",null,null,null,null,null,"Estate"]
[]
[null,null,null,"Cash",null,null,null,null,null,null,null,null,null,null,null,null,null,null,null,null,null,null,null,null,null,null,null,null,null,null,null,null,null,null,null,null,null,null,null,null,null,null,null,null,null,null,null,null,null,null,null,null,null,null,null,null,null,null,null,null,null,null,null,null,null,null,null,null,null,null,null,null,null,null,null,null,null,null,null,{"$f":"BJ41","v":0}]
[]
[null,null,null,"RRSP",null,null,null,null,null,null,null,null,null,null,null,null,null,null,null,null,null,null,null,null,null,null,null,"No",null,null,null,null,null,null,null,null,null,null,null,null,null,null,null,null,null,null,null,null,null,null,null,null,null,null,null,null,null,null,null,null,null,{"$f":"IF(Eng_Compare_Age>71,0,IF(AND(Eng_Cont_Yrs_RRSP>0,Eng_Cont_Yrs_RRSP<72-Eng_Client_Age),FV(Eng_Rate_RRSP,MIN(71,Eng_Compare_Age)-Eng_Client_Age-Eng_Cont_Yrs_RRSP,0,-FV(Eng_Rate_RRSP,Eng_Cont_Yrs_RRSP,-Eng_Cont_RRSP,-Eng_FMV_RRSP,1),1),FV(Eng_Rate_RRSP,MIN(71,Eng_Compare_Age)-Eng_Client_Age,-Eng_Cont_RRSP,-Eng_FMV_RRSP,1)))","v":0},null,null,null,null,null,null,null,null,null,null,null,{"$f":"+IF(AU29>71,0,BJ43)","v":0},null,null,null,null,null,{"$f":"IF(AB43=List!$A$20,0,BJ43)","v":0}]
[]
[null,null,null,"RRIF",null,null,null,null,null,null,null,null,null,null,null,null,null,null,null,null,null,null,null,null,null,null,null,"No",null,null,null,null,null,null,null,null,null,null,null,null,null,null,null,null,null,null,null,null,null,null,null,null,null,null,null,null,null,null,null,null,null,{"$f":"IF($AU$29<72,0,VLOOKUP($AU$29,RRIF!$A$4:$F$43,6))","v":0},null,null,null,null,null,null,null,null,null,null,null,{"$f":"+BJ45","v":0},null,null,null,null,null,{"$f":"IF(AB45=List!$A$20,0,BJ45)","v":0}]
[]
[null,null,null,"TFSA",null,null,null,null,null,null,null,null,null,null,null,null,null,null,null,null,null,null,null,null,null,null,null,"No",null,null,null,null,null,null,null,null,null,null,null,null,null,null,null,null,null,null,null,null,null,null,null,null,null,null,null,null,null,null,null,null,null,{"$f":"+IF(AND(Eng_Cont_Yrs_TFSA>0,Eng_Cont_Yrs_TFSA<Eng_Compare_Age-Eng_Client_Age),FV(Eng_Rate_TFSA,Eng_Compare_Age-Eng_Client_Age-Eng_Cont_Yrs_TFSA,0,-FV(Eng_Rate_TFSA,Eng_Cont_Yrs_TFSA,-Eng_Cont_TFSA,-Eng_FMV_TFSA,1),1),FV(Eng_Rate_TFSA,Eng_Compare_Age-Eng_Client_Age,-Eng_Cont_TFSA,-Eng_FMV_TFSA,1))","v":0},null,null,null,null,null,null,null,null,null,null,null,null,null,null,null,null,null,{"$f":"IF(AB47=List!$A$20,0,BJ47)","v":0}]
[]
[null,null,null,"Non-registered investments (growth/capital gains focused)",null,null,null,null,null,null,null,null,null,null,null,null,null,null,null,null,null,null,null,null,null,null,null,null,null,null,null,null,null,null,null,null,null,null,null,null,null,null,null,null,null,null,null,null,null,null,null,null,null,null,null,null,null,null,null,null,null,{"$f":"IF(AND(Eng_Cont_Yrs_NR1>0,Eng_Cont_Yrs_NR1<Eng_Compare_Age-Eng_Client_Age),FV(Eng_Rate_NR1,Eng_Compare_Age-Eng_Client_Age-Eng_Cont_Yrs_NR1,0,-FV(Eng_Rate_NR1,Eng_Cont_Yrs_NR1,-Eng_Cont_NR1,-Eng_FMV_NR1,1),1),FV(Eng_Rate_NR1,Eng_Compare_Age-Eng_Client_Age,-Eng_Cont_NR1,-Eng_FMV_NR1,1))","v":0},null,null,null,null,null,{"$f":"+(BJ49-Eng_ACB_NR1-(Eng_Cont_NR1*Eng_Cont_Yrs_NR1))*List!$B$1","v":0},null,null,null,null,null,null,null,null,null,null,null,{"$f":"BJ49","v":0}]
[]
[null,null,null,"Non-registered investments (segregated fund, if applicable)",null,null,null,null,null,null,null,null,null,null,null,null,null,null,null,null,null,null,null,null,null,null,null,"No",null,null,null,null,null,null,null,null,null,null,null,null,null,null,null,null,null,null,null,null,null,null,null,null,null,null,null,null,null,null,null,null,null,{"$f":"IF(AND(Eng_Cont_Yrs_NR2>0,Eng_Cont_Yrs_NR2<Eng_Compare_Age-Eng_Client_Age),FV(Eng_Rate_NR2,Eng_Compare_Age-Eng_Client_Age-Eng_Cont_Yrs_NR2,0,-FV(Eng_Rate_NR2,Eng_Cont_Yrs_NR2,-Eng_Cont_NR2,-Eng_FMV_NR2,1),1),FV(Eng_Rate_NR2,Eng_Compare_Age-Eng_Client_Age,-Eng_Cont_NR2,-Eng_FMV_NR2,1))","v":0},null,null,null,null,null,{"$f":"+(BJ51-Eng_ACB_NR2-(Eng_Cont_NR2*Eng_Cont_Yrs_NR2))*List!$B$1","v":0},null,null,null,null,null,null,null,null,null,null,null,{"$f":"IF(AB51=List!$A$20,0,BJ51)","v":0}]
[]
[null,null,null,"Non-registered investments (other)",null,null,null,null,null,null,null,null,null,null,null,null,null,null,null,null,null,null,null,null,null,null,null,null,null,null,null,null,null,null,null,null,null,null,null,null,null,null,null,null,null,null,null,null,null,null,null,null,null,null,null,null,null,null,null,null,null,{"$f":"+IF(AND(Eng_Cont_Yrs_NR3>0,Eng_Cont_Yrs_NR3<Eng_Compare_Age-Eng_Client_Age),FV(Eng_Rate_NR3,Eng_Compare_Age-Eng_Client_Age-Eng_Cont_Yrs_NR3,0,-FV(Eng_Rate_NR3,Eng_Cont_Yrs_NR3,-Eng_Cont_NR3,-Eng_FMV_NR3,1),1),FV(Eng_Rate_NR3,Eng_Compare_Age-Eng_Client_Age,-Eng_Cont_NR3,-Eng_FMV_NR3,1))","v":0},null,null,null,null,null,0,null,null,null,null,null,null,null,null,null,null,null,{"$f":"BJ53","v":0}]
[]
[null,null,null,"Land (not eligible for LCGE)",null,null,null,null,null,null,null,null,null,null,null,null,null,null,null,null,null,null,null,null,null,null,null,null,null,null,null,null,null,null,null,null,null,null,null,null,null,null,null,null,null,null,null,null,null,null,null,null,null,null,null,null,null,null,null,null,null,{"$f":"FV(BE55,$AU$29-$AJ$29,,-AY55,1)","v":0},null,null,null,null,null,{"$f":"+(BJ55-AG55)*List!$B$1","v":0},null,null,null,null,null,null,null,null,null,null,null,{"$f":"+BJ55","v":0}]
[]
[null,null,null,"Principal residence",null,null,null,null,null,null,null,null,null,null,null,null,null,null,null,null,null,null,null,null,null,null,null,null,null,null,null,null,null,null,null,null,null,null,null,null,null,null,null,null,null,null,null,null,null,null,null,null,null,null,null,null,null,null,null,null,null,{"$f":"FV(BE57,$AU$29-$AJ$29,,-AY57,1)","v":0},null,null,null,null,null,{"$f":"+MAX(0,(BJ57-AG57)*List!$B$1)","v":0},null,null,null,null,null,null,null,null,null,null,null,{"$f":"+BJ57","v":0}]
[]
[null,null,null,"Other real estate (business/rental assets can not have capital losses)",null,null,null,null,null,null,null,null,null,null,null,null,null,null,null,null,null,null,null,null,null,null,null,null,null,null,null,null,null,null,null,null,null,null,null,null,null,null,null,null,null,null,null,null,null,null,null,null,null,null,null,null,null,null,null,null,null,{"$f":"FV(BE59,$AU$29-$AJ$29,,-AY59,1)","v":0},null,null,null,null,null,{"$f":"+MAX(0,(BJ59-AG59)*List!$B$1)","v":0},null,null,null,null,null,null,null,null,null,null,null,{"$f":"+BJ59","v":0}]
[]
[null,null,null,"Assets eligible for LCGE (QSBCS, QFFP)",null,null,null,null,null,null,null,null,null,null,null,null,null,null,null,null,null,null,null,null,null,null,null,null,null,null,null,null,null,null,null,null,null,null,null,null,null,null,null,null,null,null,null,null,null,null,null,null,null,null,null,null,null,null,null,null,null,{"$f":"FV(BE61,$AU$29-$AJ$29,,-AY61,1)","v":0},null,null,null,null,null,{"$f":"+(BJ61-AG61)*List!$B$1","v":0},null,null,null,null,null,null,null,null,null,null,null,{"$f":"+BJ61","v":0}]
[]
[null,null,null,"Business shares (fixed value / estate-freeze stock)",null,null,null,null,null,null,null,null,null,null,null,null,null,null,null,null,null,null,null,null,null,null,null,null,null,null,null,null,null,null,null,null,null,null,null,null,null,null,null,null,null,null,null,null,null,null,null,null,null,null,null,null,null,null,null,null,null,{"$f":"AY63","v":0},null,null,null,null,null,{"$f":"+(BJ63-AG63)*List!$B$1","v":0},null,null,null,null,null,null,null,null,null,null,null,{"$f":"+BJ63","v":0}]
[]
[null,null,null,"Other assets generating capital gains (e.g. gold coins, painting etc.) ",null,null,null,null,null,null,null,null,null,null,null,null,null,null,null,null,null,null,null,null,null,null,null,null,null,null,null,null,null,null,null,null,null,null,null,null,null,null,null,null,null,null,null,null,null,null,null,null,null,null,null,null,null,null,null,null,null,{"$f":"+IF(AND(Eng_Cont_Yrs_Other_Assets>0,Eng_Cont_Yrs_Other_Assets<Eng_Compare_Age-Eng_Client_Age),FV(Eng_Rate_Other_Assets,Eng_Compare_Age-Eng_Client_Age-Eng_Cont_Yrs_Other_Assets,0,-FV(Eng_Rate_Other_Assets,Eng_Cont_Yrs_Other_Assets,-Eng_Cont_Other_Assets,-Eng_FMV_Other_Assets,1),1),FV(Eng_Rate_Other_Assets,Eng_Compare_Age-Eng_Client_Age,-Eng_Cont_Other_Assets,-Eng_FMV_Other_Assets,1))","v":0},null,null,null,null,null,{"$f":"+(BJ65-AG65-(Eng_Cont_Other_Assets*Eng_Cont_Yrs_Other_Assets))*List!$B$1","v":0},null,null,null,null,null,null,null,null,null,null,null,{"$f":"+BJ65","v":0}]
[]
[null,null,null,"Other easily cashable assets",null,null,null,null,null,null,null,null,null,null,null,null,null,null,null,null,null,null,null,null,null,null,null,null,null,null,null,null,null,null,null,null,null,null,null,null,null,null,null,null,null,null,null,null,null,null,null,null,null,null,null,null,null,null,null,null,null,{"$f":"+IF(AND(Eng_Cont_Yrs_Other_Easy_Assets>0,Eng_Cont_Yrs_Other_Easy_Assets<Eng_Compare_Age-Eng_Client_Age),FV(Eng_Rate_Other_Easy_Assets,Eng_Compare_Age-Eng_Client_Age-Eng_Cont_Yrs_Other_Easy_Assets,0,-FV(Eng_Rate_Other_Easy_Assets,Eng_Cont_Yrs_Other_Easy_Assets,-Eng_Cont_Other_Easy_Assets,-Eng_FMV_Other_Easy_Assets,1),1),FV(Eng_Rate_Other_Easy_Assets,Eng_Compare_Age-Eng_Client_Age,-Eng_Cont_Other_Easy_Assets,-Eng_FMV_Other_Easy_Assets,1))","v":0},null,null,null,null,null,{"$f":"+(BJ67-AG67-(Eng_Cont_Other_Easy_Assets*Eng_Cont_Yrs_Other_Easy_Assets))*List!$B$1","v":0},null,null,null,null,null,null,null,null,null,null,null,{"$f":"BJ67","v":0}]
[]
[null,null,null,"Other non-cashable assets",null,null,null,null,null,null,null,null,null,null,null,null,null,null,null,null,null,null,null,null,null,null,null,null,null,null,null,null,null,null,null,null,null,null,null,null,null,null,null,null,null,null,null,null,null,null,null,null,null,null,null,null,null,null,null,null,null,{"$f":"+IF(AND(Eng_Cont_Yrs_Other_Non_Assets>0,Eng_Cont_Yrs_Other_Non_Assets<Eng_Compare_Age-Eng_Client_Age),FV(Eng_Rate_Other_Non_Assets,Eng_Compare_Age-Eng_Client_Age-Eng_Cont_Yrs_Other_Non_Assets,0,-FV(Eng_Rate_Other_Non_Assets,Eng_Cont_Yrs_Other_Non_Assets,-Eng_Cont_Other_Non_Assets,-Eng_FMV_Other_Non_Assets,1),1),FV(Eng_Rate_Other_Non_Assets,Eng_Compare_Age-Eng_Client_Age,-Eng_Cont_Other_Non_Assets,-Eng_FMV_Other_Non_Assets,1))","v":0},null,null,null,null,null,{"$f":"+(BJ69-AG69-(Eng_Cont_Other_Non_Assets*Eng_Cont_Yrs_Other_Non_Assets))*List!$B$1","v":0},null,null,null,null,null,null,null,null,null,null,null,{"$f":"BJ69","v":0}]
[]
[null,null,null,"Estimated depreciation recapture on personally owned buisness assets"]
[]
[null,null,null,"Estimated terminal loss on personally owned buisness/rental assets"]
[]
[null,null,null,"Guaranteed portion of annuity",null,null,null,null,null,null,null,null,null,null,null,null,null,null,null,null,null,null,null,null,null,null,null,null,null,null,null,null,null,null,null,null,null,null,null,null,null,null,null,null,null,null,null,null,null,null,null,null,null,null,null,null,null,null,null,null,null,null,null,null,null,null,null,null,null,null,null,null,null,null,null,null,null,null,null,{"$f":"BJ75","v":0}]
[]
[null,null,null,"Inforce Life insurance coverage (Death benefit - only if the estate is the beneficiary)",null,null,null,null,null,null,null,null,null,null,null,null,null,null,null,null,null,null,null,null,null,null,null,null,null,null,null,null,null,null,null,null,null,null,null,null,null,null,null,null,null,null,null,null,null,null,null,null,null,null,null,null,null,null,null,null,null,null,null,null,null,null,null,null,null,null,null,null,null,0,null,null,null,null,null,{"$f":"BJ77","v":0}]
[]
[]
[null,null,null,null,null,null,null,null,null,null,null,null,null,null,null,null,null,null,null,null,null,null,null,null,null,null,null,null,null,null,null,null,null,null,null,null,null,null,null,null,null,null,null,null,null,null,null,null,null,null,null,null,null,null,null,null,null,null,null,null,null,"Gross",null,null,null,null,null,{"$f":"SUM(BP41:BP77)","v":0},null,null,null,null,null,{"$f":"SUM(BV41:BV77)","v":0},null,null,null,null,null,{"$f":"SUM(CB41:CB77)","v":0}]
[]
[]
[null,null,null,null,null,null,null,null,null,null,null,null,null,null,null,null,null,null,null,null,null,null,null,null,null,null,"ESTATE TRANSFER ESTIMATE v2026.02 continued"]
[]
[]
[]
[]
[]
[]
[null,null,"Deductions"]
[]
[]
[null,null,null,"Mortgage/borrowing on real property included in estate above"]
[]
[null,null,null,"Principal residence exemption (%)",null,null,null,null,null,null,null,null,null,null,null,null,null,null,null,null,null,null,null,null,null,null,null,null,null,null,null,null,null,null,null,null,null,null,null,null,null,null,null,null,null,null,null,null,null,null,null,null,null,null,null,null,null,null,null,null,null,null,null,null,null,null,null,{"$f":"+BP57*AG95","v":0}]
[]
[null,null,null,"Lifetime capital gains deduction (1/2 of exemption amount)",null,null,null,null,null,null,null,null,null,null,null,null,null,null,null,null,null,null,null,null,null,null,null,null,null,null,null,null,{"$f":"+VLOOKUP($AU$29,LTCGE!$B$2:$D$101,3)","v":637500},null,null,null,null,null,"Available LTCGD of the client",null,null,null,null,null,null,null,null,null,null,null,null,500000,null,null,null,null,null,null,null,null,null,null,null,null,null,null,null,{"$f":"MIN(AG97,AZ97,BP61)","v":0}]
[null,null,null,"Maximum indexed to inflation amount of LTCGD at comparison age"]
[]
[]
[]
[null,null,null,"Other"]
[]
[]
[null,null,null,null,null,null,null,null,null,null,null,null,null,null,null,null,null,null,null,null,null,null,null,null,null,null,null,null,null,null,null,null,null,null,null,null,null,null,null,null,null,null,null,null,null,null,null,null,null,null,null,null,null,null,null,null,null,null,null,null,null,"Net",null,null,null,null,null,{"$f":"+BP80-BP95-BP97","v":0},null,null,null,null,null,{"$f":"+BV80","v":0},null,null,null,null,null,{"$f":"+CB80-CB93","v":0}]
[]
[]
[]
[]
[]
[]
[null,null,"Liquidity Summary"]
[]
[]
[null,null,null,"Liquid assets",null,null,null,null,null,null,{"$f":"BJ41+BJ43+BJ45+BJ47+BJ49+BJ51+BJ53+BJ67","v":0},null,null,null,null,null,null,"Death benefit to estate",null,null,null,null,null,null,null,null,null,null,{"$f":"BJ77","v":0},null,null,null,null,null,null,"Total cash required",null,null,null,null,null,null,null,null,null,null,null,null,null,null,null,{"$f":"U144","v":{"$error":"#N/A"}},null,null,null,null,null,null,null,null,null,null,"Surplus / (Shortfall)",null,null,null,null,null,null,null,null,null,null,null,null,null,null,null,{"$f":"K115-AZ115+AC115","v":{"$error":"#N/A"}}]
[]
[]
[]
[]
[]
[]
[null,null,"Liabilities and expenses"]
[]
[]
[null,null,null,null,null,null,null,null,null,null,null,null,null,null,null,"As a % of estate",null,null,null,null,"Amount"]
[]
[null,null,null,"Mortgage",null,null,null,null,null,null,null,null,null,null,null,null,null,null,null,null,{"$f":"CB93","v":0}]
[]
[null,null,null,"Other debt and liabilities at death"]
[]
[null,null,null,"Legal fees",null,null,null,null,null,null,null,null,null,null,null,null,null,null,null,null,{"$f":"+P131*$CB$105","v":0}]
[]
[null,null,null,"Accounting fees",null,null,null,null,null,null,null,null,null,null,null,null,null,null,null,null,{"$f":"+P133*$CB$105","v":0}]
[]
[null,null,null,"Trustee / executor fees",null,null,null,null,null,null,null,null,null,null,null,null,null,null,null,null,{"$f":"+P135*$CB$105","v":0}]
[]
[null,null,null,"Other final expenses"]
[]
[null,null,null,"Income tax payable",null,null,null,null,null,null,null,null,null,null,null,null,null,null,null,null,{"$f":"+(BV105+BP105)*$CA$29","v":0}]
[]
[null,null,null,"Probate tax payable",null,null,null,null,null,null,null,null,null,null,null,null,null,null,null,null,{"$f":"+VLOOKUP(BK29,List!$A$5:$D$17,4)","v":{"$error":"#N/A"}}]
[]
[]
[null,null,null,"Expected shrinkage in estate due to liabilities, expenses and taxes",null,null,null,null,null,null,null,null,null,null,null,null,null,null,null,null,{"$f":"SUM(U127:U141)","v":{"$error":"#N/A"}}]
[]
[]
[]
[null,null,{"$f":"\"Potential life insurance need to preserve your estate from shrinkage is \"&TEXT(U144,\"$#00,000\")&\". Contact \"&IF(Eng_Adv_Use_In_Printouts=\"Yes\",TRIM(Eng_Prepared_By),\"your RBC life insurance agent\")&\" to find the right insurance solution for you.\"","v":{"$error":"#N/A"}}]

{"sheet":"Considerations","index":2,"n_rows":47,"n_cols":4,"rows_kept":47,"cut":false,"hidden":false,"merged":[[46,3,46,76],[34,3,34,76],[35,3,35,76],[36,3,36,76],[37,3,37,76],[38,3,38,76],[39,3,39,76],[40,3,40,76],[41,3,41,76],[42,3,42,76],[43,3,43,76],[44,3,44,76],[45,3,45,76],[23,3,23,76],[32,2,32,76],[14,2,14,76],[16,2,16,76],[18,3,18,76],[19,3,19,76],[20,3,20,76],[21,3,21,76],[22,3,22,76],[24,3,24,76],[30,2,30,76],[15,2,15,76],[31,2,31,76]]}
[]
[]
[]
[]
[]
[]
[]
[]
[]
[]
[]
[]
[]
[]
[]
[null,null,"General considerations"]
[]
[]
[null,null,1,"RBC Life Insurance Company recommends consulting with your legal, accounting, tax and financial advisors before making any decision. The information provided in this presentation is not intended to be relied upon as tax, legal, accounting or financial advice."]
[null,null,2,"RBC Life Insurance Company does not accept any liability for any direct, indirect or consequential loss arising from, or in connection with, the information in this presentation."]
[null,null,3,"Reasonable care has been taken to ensure the accuracy of the calculations and information provided, but errors and omissions are possible."]
[null,null,4,"If an insurance policy is issued, the coverage will be governed by the terms of the policy. This presentation will not form part of any policy issued."]
[null,null,5,"Buying a life insurance policy is a long-term commitment. Surrendering the policy can have significant tax and financial consequences."]
[null,null,6,"This is not an insurance illustration."]
[null,null,7,"To ensure you always provide your clients with accurate numbers, it is important that you use the latest version of the RBC Estate Transfer Estimate tool."]
[]
[]
[]
[]
[]
[]
[null,null,"Calculation considerations/assumptions"]
[]
[]
[null,null,1,"The income tax liability is calculated by multiplying the taxable income/gain by the marginal tax rate. Unless identified, any other credits/deductions that the client may be entitled to have not been considered in this calculation."]
[null,null,{"$f":"1+C35","v":2},{"$f":"\"The annual inflation rate used is \"&TEXT(LTCGE!$J$1,\"0.0%\")&\".\"","v":"The annual inflation rate used is 3.0%."}]
[null,null,3,"The maximum lifetime capital gains exemption in the comparison year is an estimated amount. The actual limit applicable in the year of death can be different than shown in this presentation."]
[null,null,4,"It is assumed that no capital or non-capital loss carryforwards will be available to reduce taxable gains or income in the year of death."]
[null,null,5,"Any tax liability in foreign countries and potential tax credits for those tax liabilities is not considered in the calculation."]
[null,null,6,"Capital gains/losses are calculated based on the adjusted cost base and projected fair market value of the assets. Special rules that apply in respect of personal-use property and listed personal property are not considered in this calculation."]
[null,null,7,"The future value of RRIF is calculated assuming that the minimum amount required under the Income Tax Act (Canada) will be withdrawn from age 71."]
[null,null,8,"When a beneficiary has been designated, it is assumed that the value of that asset will not be included in the estate tax calculation."]
[null,null,9,"It is assumed that no withdrawals will be made from the assets and they will continue to grow at a specified growth rate on an annual basis. However, it is possible that the asset value may decline even if no withdrawal is made."]
[null,null,10,"The calculator only calculates the income/gain that may result from various assets held at death. It does not consider other income earned during the year of death or any of the previous years."]
[null,null,11,"The potential estate tax liability is a simplified estimate only. The calculator is not meant to replace the detailed calculation based on the rules applicable in the respective province or territory. "]
[null,null,12,"The capital gain/loss income inclusion rate used in the calculation is 1/2 of the capital gain/loss."]
[null,null,13,"All amounts, other than percentages, are in Canadian dollars."]

{"sheet":"Sortie","index":3,"n_rows":29,"n_cols":17,"rows_kept":29,"cut":false,"hidden":true,"merged":[[26,1,26,16],[27,1,27,16],[28,1,28,16],[17,3,18,6],[22,3,23,6],[11,1,11,16],[15,1,15,16],[16,3,16,6],[21,3,21,6],[17,10,18,15],[19,10,20,15],[21,10,22,15]]}
[]
[]
[]
[null,"Quel patrimoine laissez-vous réellement ?"]
[]
[]
[]
[]
[]
[null,null,null,null,null,null,null,null,null,null,null,null,null,null,null,null,"v2026.02"]
[]
[null,"Vous avez passé votre vie à bâtir votre patrimoine et vous aimeriez que vos proches continuent de récolter les fruits de votre labeur. Toutefois, il y aura de l’impôt et des frais à payer en espèces avant de procéder au transfert de votre actif à vos bénéficiaires. Les frais et l’impôt peuvent être plus élevés que vous ne le croyez et réduire considérablement le montant de la succession qui revient à vos bénéficiaires. De plus, si votre succession ne dispose pas de liquidités suffisantes pour payer ces dépenses, certains biens pourraient devoir être vendus rapidement, notamment votre maison, votre chalet ou vos véhicules."]
[null,"Le graphique ci-dessous représente une estimation de ce qui pourrait arriver à votre succession ainsi que le manque de fonds pour vos bénéficiaires."]
[]
[]
[null,"Les impôts et les dernières dépenses peuvent réduire la succession que vous prévoyez laisser à votre bénéficiaire."]
[null,null,null,"Vous comptez laisser ceci à votre bénéficiaire :"]
[null,null,null,{"$f":"'Raw Data'!E22","v":0},null,null,null,null,null,null,"Diminution attendue de la succession en raison des dettes, des dépenses et des impôts :"]
[]
[null,null,null,null,null,null,null,null,null,null,{"$f":"'Raw Data'!E20","v":{"$error":"#N/A"}}]
[]
[null,null,null,"Voici ce que recevra probablement votre bénéficiaire :",null,null,null,null,null,null,"Pensez à inclure ce montant pour déterminer votre besoin en assurance vie permanente."]
[null,null,null,{"$f":"'Raw Data'!E19","v":{"$error":"#N/A"}}]
[]
[]
[]
[null,"Le capital-décès d’une police d’assurance vie RBC pourrait servir à payer la dette d’impôt et les autres dépenses, et éviter la réduction du patrimoine disponible pour les bénéficiaires."]
[]
[null,{"$f":"\"Communiquez avec \"&IF(Fre_Adv_Use_In_Printouts=\"Non\",\"votre conseiller RBC\",Fre_Prepared_By)&\" dès aujourd’hui !\"","v":"Communiquez avec votre conseiller RBC dès aujourd’hui !"}]

{"sheet":"Entrée","index":4,"n_rows":146,"n_cols":84,"rows_kept":146,"cut":false,"hidden":true,"merged":[[92,83,92,87],[68,71,68,75],[145,2,145,88],[58,3,59,34],[126,20,126,27],[128,20,128,27],[130,20,130,27],[109,2,109,88],[119,2,119,28],[112,82,112,87],[128,15,128,18],[130,15,130,18],[132,15,132,18],[132,20,132,27],[112,67,112,81],[122,15,123,18],[122,20,122,27],[124,20,124,27],[112,35,112,40],[102,83,102,87],[118,2,118,28],[120,2,120,28],[141,3,141,19],[141,20,141,27],[134,20,134,27],[136,20,136,27],[138,20,138,27],[112,60,112,65],[102,77,102,81],[102,65,102,70],[94,71,94,75],[112,42,112,59],[112,17,112,34],[96,71,97,75],[108,2,108,88],[110,2,110,88],[94,40,94,44],[96,40,97,44],[112,10,112,15],[112,3,112,9],[96,64,97,68],[99,40,99,44],[99,46,99,63],[99,64,99,68],[99,71,99,75],[46,65,46,69],[90,2,90,88],[58,65,58,69],[60,65,60,69],[76,65,76,69],[79,65,79,70],[62,35,62,39],[64,35,64,39],[68,41,68,45],[58,83,58,87],[60,83,60,87],[62,83,62,87],[64,83,64,87],[58,71,58,75],[60,71,60,75],[70,77,70,81],[72,77,72,81],[66,71,66,75],[66,83,66,87],[64,59,64,63],[68,83,68,87],[74,83,74,87],[76,83,76,87],[64,71,64,75],[48,83,48,87],[50,83,50,87],[52,83,52,87],[54,83,54,87],[89,2,89,88],[88,2,88,88],[62,30,62,31],[64,53,64,57],[66,53,66,57],[60,30,60,31],[66,35,66,39],[68,35,68,39],[60,53,60,57],[62,53,62,57],[60,35,60,39],[56,71,56,75],[62,71,62,75],[76,77,76,81],[79,83,79,87],[79,77,79,81],[74,77,74,81],[66,59,66,63],[48,65,48,69],[50,3,50,29],[44,83,44,87],[46,83,46,87],[56,83,56,87],[38,83,38,87],[40,83,40,87],[42,83,42,87],[36,2,36,88],[50,30,50,31],[44,3,44,6],[46,41,46,45],[44,30,44,31],[46,30,46,31],[44,53,44,57],[46,53,46,57],[48,3,48,29],[48,35,48,39],[48,53,48,57],[50,53,50,57],[52,53,52,57],[54,53,54,57],[50,35,50,39],[52,35,52,39],[54,35,54,39],[38,77,38,81],[28,82,28,86],[15,2,15,88],[18,2,18,88],[19,2,19,88],[24,2,24,88],[26,2,26,88],[25,2,25,88],[16,2,16,88],[17,2,17,88],[28,36,28,37],[28,8,28,24],[28,51,28,52],[28,66,28,67],[60,59,60,63],[56,53,56,57],[64,3,65,34],[64,41,64,45],[66,41,66,45],[48,30,48,31],[35,2,35,88],[38,65,38,69],[40,65,40,69],[42,65,42,69],[42,41,42,45],[38,35,38,39],[38,28,38,33],[38,41,38,45],[38,59,38,63],[42,59,42,63],[38,53,38,57],[42,53,42,57],[42,3,42,6],[42,30,42,31],[50,71,50,75],[52,71,52,75],[38,47,38,51],[42,77,42,81],[58,53,58,57],[56,35,56,39],[4,9,4,61],[8,15,8,16],[44,65,44,69],[58,35,58,39],[7,7,7,29],[10,26,10,64],[50,41,50,45],[52,41,52,45],[56,59,56,63],[58,59,58,63],[44,59,44,63],[46,59,46,63],[50,65,50,69],[52,65,52,69],[54,65,54,69],[50,59,50,63],[52,59,52,63],[54,59,54,63],[48,59,48,63],[48,41,48,45],[34,2,34,88],[38,71,38,75],[54,71,54,75],[68,53,68,57],[42,47,42,51],[52,30,52,31],[79,71,79,75],[102,71,102,75],[83,26,83,64],[44,77,44,81],[48,71,48,75],[62,65,62,69],[64,65,64,69],[66,65,66,69],[68,65,68,69],[74,65,74,69],[68,59,68,63],[56,65,56,69],[46,47,46,51],[48,47,48,51],[50,47,50,51],[52,47,52,51],[66,47,66,51],[68,47,68,51],[64,47,64,51],[96,46,97,63]]}
[]
[]
[]
[]
[null,null,null,null,null,null,null,null,null,"N’envoyez pas ce tableur à vos clients. Seuls les documents imprimés en format PDF peuvent être distribués."]
[]
[]
[null,null,"Préparé par:"]
[null,null," Inclure dans les impressions:",null,null,null,null,null,null,null,null,null,null,null,null,"Non"]
[]
[null,null,null,null,null,null,null,null,null,null,null,null,null,null,null,null,null,null,null,null,null,null,null,null,null,null,"ESTIMATION DU TRANSFERT DE PATRIMOINE, version 2026.02"]
[]
[]
[]
[]
[]
[null,null,"À propos de cette calculatrice"]
[]
[null,null,"L’objectif de cette calculatrice est d’estimer les frais d’homologation/l’impôt sur l’administration des successions et l’impôt sur le revenu qui pourraient être payables à votre décès en fonction des éléments d’actif que vous pourriez détenir à ce moment-là et de montrer leur incidence sur votre succession. Le calcul suppose que vous êtes célibataire ou le dernier conjoint ou conjoint de fait décédé."]
[null,null,"Une police d’assurance vie permanente RBC peut constituer une excellente solution pour optimiser la liquidité de votre succession."]
[]
[]
[]
[]
[]
[null,null,"Renseignements sur le client"]
[]
[]
[null,null,null,null,null,null,null,"Nom du client",null,null,null,null,null,null,null,null,null,null,null,null,null,null,null,null,null,null,null,null,null,null,null,null,null,null,null,"Âge du client",null,null,null,null,null,null,null,null,null,null,null,null,null,null,"Âge de comparaison",null,null,null,null,null,null,null,null,null,null,null,null,null,null,"Province de résidence",null,null,null,null,null,null,null,null,null,null,null,null,null,null,null,"Taux d’imposition marginal"]
[]
[]
[]
[]
[]
[]
[null,null,"Renseignements sur les éléments d’actif"]
[]
[]
[null,null,null,"Type d’élément d’actif",null,null,null,null,null,null,null,null,null,null,null,null,null,null,null,null,null,null,null,null,null,null,null,null,"Désignation de bénéficiaire",null,null,null,null,null,null,"PBR / coût",null,null,null,null,null,"Cotisation annuelle",null,null,null,null,null,"Années de cotisation",null,null,null,null,null,"JVM actuelle",null,null,null,null,null,"Taux de croissance",null,null,null,null,null,"Valeur future",null,null,null,null,null,"Gain imposable",null,null,null,null,null,"Revenu imposable",null,null,null,null,null,"Succession"]
[]
[null,null,null,"Espèces",null,null,null,null,null,null,null,null,null,null,null,null,null,null,null,null,null,null,null,null,null,null,null,null,null,null,null,null,null,null,null,null,null,null,null,null,null,null,null,null,null,null,null,null,null,null,null,null,null,null,null,null,null,null,null,null,null,null,null,null,null,null,null,null,null,null,null,null,null,null,null,null,null,null,null,null,null,null,null,{"$f":"BN41","v":0}]
[]
[null,null,null,"REER",null,null,null,null,null,null,null,null,null,null,null,null,null,null,null,null,null,null,null,null,null,null,null,null,null,null,"Non",null,null,null,null,null,null,null,null,null,null,null,null,null,null,null,null,null,null,null,null,null,null,null,null,null,null,null,null,null,null,null,null,null,null,{"$f":"IF(Fre_Compare_Age>71,0,IF(AND(Fre_Cont_Yrs_RRSP>0,Fre_Cont_Yrs_RRSP<72-Fre_Client_Age),FV(Fre_Rate_RRSP,MIN(71,Fre_Compare_Age)-Fre_Client_Age-Fre_Cont_Yrs_RRSP,0,-FV(Fre_Rate_RRSP,Fre_Cont_Yrs_RRSP,-Fre_Cont_RRSP,-Fre_FMV_RRSP,1),1),FV(Fre_Rate_RRSP,MIN(71,Fre_Compare_Age)-Fre_Client_Age,-Fre_Cont_RRSP,-Fre_FMV_RRSP,1)))","v":0},null,null,null,null,null,null,null,null,null,null,null,{"$f":"+IF(AZ29>71,0,BN43)","v":0},null,null,null,null,null,{"$f":"IF(AE43='List French'!$B$20,0,BN43)","v":0}]
[]
[null,null,null,"FERR",null,null,null,null,null,null,null,null,null,null,null,null,null,null,null,null,null,null,null,null,null,null,null,null,null,null,"Non",null,null,null,null,null,null,null,null,null,null,null,null,null,null,null,null,null,null,null,null,null,null,null,null,null,null,null,null,null,null,null,null,null,null,{"$f":"IF($AZ$29<72,0,VLOOKUP($AZ$29,'RRIF French'!$A$4:$F$43,6))","v":0},null,null,null,null,null,null,null,null,null,null,null,{"$f":"+BN45","v":0},null,null,null,null,null,{"$f":"IF(AE45='List French'!$B$20,0,BN45)","v":0}]
[]
[null,null,null,"CELI",null,null,null,null,null,null,null,null,null,null,null,null,null,null,null,null,null,null,null,null,null,null,null,null,null,null,"Non",null,null,null,null,null,null,null,null,null,null,null,null,null,null,null,null,null,null,null,null,null,null,null,null,null,null,null,null,null,null,null,null,null,null,{"$f":"+IF(AND(Fre_Cont_Yrs_TFSA>0,Fre_Cont_Yrs_TFSA<Fre_Compare_Age-Fre_Client_Age),FV(Fre_Rate_TFSA,Fre_Compare_Age-Fre_Client_Age-Fre_Cont_Yrs_TFSA,0,-FV(Fre_Rate_TFSA,Fre_Cont_Yrs_TFSA,-Fre_Cont_TFSA,-Fre_FMV_TFSA,1),1),FV(Fre_Rate_TFSA,Fre_Compare_Age-Fre_Client_Age,-Fre_Cont_TFSA,-Fre_FMV_TFSA,1))","v":0},null,null,null,null,null,null,null,null,null,null,null,null,null,null,null,null,null,{"$f":"IF(AE47='List French'!$B$20,0,BN47)","v":0}]
[]
[null,null,null,"Placements non enregistrés (axés sur la croissance et les gains en capital)",null,null,null,null,null,null,null,null,null,null,null,null,null,null,null,null,null,null,null,null,null,null,null,null,null,null,null,null,null,null,null,null,null,null,null,null,null,null,null,null,null,null,null,null,null,null,null,null,null,null,null,null,null,null,null,null,null,null,null,null,null,{"$f":"IF(AND(Fre_Cont_Yrs_NR1>0,Fre_Cont_Yrs_NR1<Fre_Compare_Age-Fre_Client_Age),FV(Fre_Rate_NR1,Fre_Compare_Age-Fre_Client_Age-Fre_Cont_Yrs_NR1,0,-FV(Fre_Rate_NR1,Fre_Cont_Yrs_NR1,-Fre_Cont_NR1,-Fre_FMV_NR1,1),1),FV(Fre_Rate_NR1,Fre_Compare_Age-Fre_Client_Age,-Fre_Cont_NR1,-Fre_FMV_NR1,1))","v":0},null,null,null,null,null,{"$f":"+(BN49-Fre_ACB_NR1-(Fre_Cont_NR1*Fre_Cont_Yrs_NR1))*'List French'!$B$1","v":0},null,null,null,null,null,null,null,null,null,null,null,{"$f":"BN49","v":0}]
[]
[null,null,null,"Placements non enregistrés (fonds distincts, le cas échéant)",null,null,null,null,null,null,null,null,null,null,null,null,null,null,null,null,null,null,null,null,null,null,null,null,null,null,"Non",null,null,null,null,null,null,null,null,null,null,null,null,null,null,null,null,null,null,null,null,null,null,null,null,null,null,null,null,null,null,null,null,null,null,{"$f":"IF(AND(Fre_Cont_Yrs_NR2>0,Fre_Cont_Yrs_NR2<Fre_Compare_Age-Fre_Client_Age),FV(Fre_Rate_NR2,Fre_Compare_Age-Fre_Client_Age-Fre_Cont_Yrs_NR2,0,-FV(Fre_Rate_NR2,Fre_Cont_Yrs_NR2,-Fre_Cont_NR2,-Fre_FMV_NR2,1),1),FV(Fre_Rate_NR2,Fre_Compare_Age-Fre_Client_Age,-Fre_Cont_NR2,-Fre_FMV_NR2,1))","v":0},null,null,null,null,null,{"$f":"+(BN51-Fre_ACB_NR2-(Fre_Cont_NR2*Fre_Cont_Yrs_NR2))*'List French'!$B$1","v":0},null,null,null,null,null,null,null,null,null,null,null,{"$f":"IF(AE51='List French'!$B$20,0,BN51)","v":0}]
[]
[null,null,null,"Placements non enregistrés (autres)",null,null,null,null,null,null,null,null,null,null,null,null,null,null,null,null,null,null,null,null,null,null,null,null,null,null,null,null,null,null,null,null,null,null,null,null,null,null,null,null,null,null,null,null,null,null,null,null,null,null,null,null,null,null,null,null,null,null,null,null,null,{"$f":"+IF(AND(Fre_Cont_Yrs_NR3>0,Fre_Cont_Yrs_NR3<Fre_Compare_Age-Fre_Client_Age),FV(Fre_Rate_NR3,Fre_Compare_Age-Fre_Client_Age-Fre_Cont_Yrs_NR3,0,-FV(Fre_Rate_NR3,Fre_Cont_Yrs_NR3,-Fre_Cont_NR3,-Fre_FMV_NR3,1),1),FV(Fre_Rate_NR3,Fre_Compare_Age-Fre_Client_Age,-Fre_Cont_NR3,-Fre_FMV_NR3,1))","v":0},null,null,null,null,null,0,null,null,null,null,null,null,null,null,null,null,null,{"$f":"BN53","v":0}]
[]
[null,null,null,"Terrain (non admissible à la ECGC)",null,null,null,null,null,null,null,null,null,null,null,null,null,null,null,null,null,null,null,null,null,null,null,null,null,null,null,null,null,null,null,null,null,null,null,null,null,null,null,null,null,null,null,null,null,null,null,null,null,null,null,null,null,null,null,null,null,null,null,null,null,{"$f":"FV(BH55,$AZ$29-$AK$29,,-BB55,1)","v":0},null,null,null,null,null,{"$f":"+(BN55-AJ55)*'List French'!$B$1","v":0},null,null,null,null,null,null,null,null,null,null,null,{"$f":"+BN55","v":0}]
[]
[null,null,null,"Résidence principale",null,null,null,null,null,null,null,null,null,null,null,null,null,null,null,null,null,null,null,null,null,null,null,null,null,null,null,null,null,null,null,null,null,null,null,null,null,null,null,null,null,null,null,null,null,null,null,null,null,null,null,null,null,null,null,null,null,null,null,null,null,{"$f":"FV(BH57,+$AZ$29-$AK$29,,-BB57,1)","v":0},null,null,null,null,null,{"$f":"+MAX(0,(BN57-AJ57)*'List French'!$B$1)","v":0},null,null,null,null,null,null,null,null,null,null,null,{"$f":"+BN57","v":0}]
[]
[null,null,null,"Autres biens immeubles (les actifs d’entreprise ou de location ne peuvent pas avoir de pertes en capital)",null,null,null,null,null,null,null,null,null,null,null,null,null,null,null,null,null,null,null,null,null,null,null,null,null,null,null,null,null,null,null,null,null,null,null,null,null,null,null,null,null,null,null,null,null,null,null,null,null,null,null,null,null,null,null,null,null,null,null,null,null,{"$f":"FV(BH59,+$AZ$29-$AK$29,,-BB59,1)","v":0},null,null,null,null,null,{"$f":"+MAX(0,(BN59-AJ59)*'List French'!$B$1)","v":0},null,null,null,null,null,null,null,null,null,null,null,{"$f":"+BN59","v":0}]
[]
[null,null,null,"Actifs admissibles à la ECGE (BAPA / AAPE)",null,null,null,null,null,null,null,null,null,null,null,null,null,null,null,null,null,null,null,null,null,null,null,null,null,null,null,null,null,null,null,null,null,null,null,null,null,null,null,null,null,null,null,null,null,null,null,null,null,null,null,null,null,null,null,null,null,null,null,null,null,{"$f":"FV(BH61,+$AZ$29-$AK$29,,-BB61,1)","v":0},null,null,null,null,null,{"$f":"+(BN61-AJ61)*'List French'!$B$1","v":0},null,null,null,null,null,null,null,null,null,null,null,{"$f":"+BN61","v":0}]
[]
[null,null,null,"Actions d’entreprise (valeur fixe / actions grevant la succession)",null,null,null,null,null,null,null,null,null,null,null,null,null,null,null,null,null,null,null,null,null,null,null,null,null,null,null,null,null,null,null,null,null,null,null,null,null,null,null,null,null,null,null,null,null,null,null,null,null,null,null,null,null,null,null,null,null,null,null,null,null,{"$f":"BB63","v":0},null,null,null,null,null,{"$f":"+(BN63-AJ63)*'List French'!$B$1","v":0},null,null,null,null,null,null,null,null,null,null,null,{"$f":"+BN63","v":0}]
[]
[null,null,null,"Autres éléments d’actif générant des gains en capital (p. ex. pièces d’or, peinture, etc.) ",null,null,null,null,null,null,null,null,null,null,null,null,null,null,null,null,null,null,null,null,null,null,null,null,null,null,null,null,null,null,null,null,null,null,null,null,null,null,null,null,null,null,null,null,null,null,null,null,null,null,null,null,null,null,null,null,null,null,null,null,null,{"$f":"+IF(AND(Fre_Cont_Yrs_Other_Assets>0,Fre_Cont_Yrs_Other_Assets<Fre_Compare_Age-Fre_Client_Age),FV(Fre_Rate_Other_Assets,Fre_Compare_Age-Fre_Client_Age-Fre_Cont_Yrs_Other_Assets,0,-FV(Fre_Rate_Other_Assets,Fre_Cont_Yrs_Other_Assets,-Fre_Cont_Other_Assets,-Fre_FMV_Other_Assets,1),1),FV(Fre_Rate_Other_Assets,Fre_Compare_Age-Fre_Client_Age,-Fre_Cont_Other_Assets,-Fre_FMV_Other_Assets,1))","v":0},null,null,null,null,null,{"$f":"+(BN65-AJ65-(Fre_Cont_Other_Assets*Fre_Cont_Yrs_Other_Assets))*'List French'!$B$1","v":0},null,null,null,null,null,null,null,null,null,null,null,{"$f":"+BN65","v":0}]
[]
[null,null,null,"Autres actifs facilement encaissables",null,null,null,null,null,null,null,null,null,null,null,null,null,null,null,null,null,null,null,null,null,null,null,null,null,null,null,null,null,null,null,null,null,null,null,null,null,null,null,null,null,null,null,null,null,null,null,null,null,null,null,null,null,null,null,null,null,null,null,null,null,{"$f":"+IF(AND(Fre_Cont_Yrs_Other_Easy_Assets>0,Fre_Cont_Yrs_Other_Easy_Assets<Fre_Compare_Age-Fre_Client_Age),FV(Fre_Rate_Other_Easy_Assets,Fre_Compare_Age-Fre_Client_Age-Fre_Cont_Yrs_Other_Easy_Assets,0,-FV(Fre_Rate_Other_Easy_Assets,Fre_Cont_Yrs_Other_Easy_Assets,-Fre_Cont_Other_Easy_Assets,-Fre_FMV_Other_Easy_Assets,1),1),FV(Fre_Rate_Other_Easy_Assets,Fre_Compare_Age-Fre_Client_Age,-Fre_Cont_Other_Easy_Assets,-Fre_FMV_Other_Easy_Assets,1))","v":0},null,null,null,null,null,{"$f":"+(BN67-AJ67-(Fre_Cont_Other_Easy_Assets*Fre_Cont_Yrs_Other_Easy_Assets))*'List French'!$B$1","v":0},null,null,null,null,null,null,null,null,null,null,null,{"$f":"BN67","v":0}]
[]
[null,null,null,"Autres actifs non encaissables",null,null,null,null,null,null,null,null,null,null,null,null,null,null,null,null,null,null,null,null,null,null,null,null,null,null,null,null,null,null,null,null,null,null,null,null,null,null,null,null,null,null,null,null,null,null,null,null,null,null,null,null,null,null,null,null,null,null,null,null,null,{"$f":"+IF(AND(Fre_Cont_Yrs_Other_Non_Assets>0,Fre_Cont_Yrs_Other_Non_Assets<Fre_Compare_Age-Fre_Client_Age),FV(Fre_Rate_Other_Non_Assets,Fre_Compare_Age-Fre_Client_Age-Fre_Cont_Yrs_Other_Non_Assets,0,-FV(Fre_Rate_Other_Non_Assets,Fre_Cont_Yrs_Other_Non_Assets,-Fre_Cont_Other_Non_Assets,-Fre_FMV_Other_Non_Assets,1),1),FV(Fre_Rate_Other_Non_Assets,Fre_Compare_Age-Fre_Client_Age,-Fre_Cont_Other_Non_Assets,-Fre_FMV_Other_Non_Assets,1))","v":0},null,null,null,null,null,{"$f":"+(BN69-AJ69-(Fre_Cont_Other_Non_Assets*Fre_Cont_Yrs_Other_Non_Assets))*'List French'!$B$1","v":0},null,null,null,null,null,null,null,null,null,null,null,{"$f":"BN69","v":0}]
[]
[null,null,null,"Estimation de la récupération de l’amortissement sur les actifs d’entreprise détenus à titre personnel"]
[]
[null,null,null,"Estimation de la perte finale sur les actifs d’entreprise ou de location détenus par des particuliers"]
[]
[null,null,null,"Portion garantie de la rente",null,null,null,null,null,null,null,null,null,null,null,null,null,null,null,null,null,null,null,null,null,null,null,null,null,null,null,null,null,null,null,null,null,null,null,null,null,null,null,null,null,null,null,null,null,null,null,null,null,null,null,null,null,null,null,null,null,null,null,null,null,null,null,null,null,null,null,null,null,null,null,null,null,null,null,null,null,null,null,{"$f":"BN75","v":0}]
[]
[null,null,null,"Couverture d’assurance vie en vigueur (prestation de décès – seulement si la succession est le bénéficiaire)",null,null,null,null,null,null,null,null,null,null,null,null,null,null,null,null,null,null,null,null,null,null,null,null,null,null,null,null,null,null,null,null,null,null,null,null,null,null,null,null,null,null,null,null,null,null,null,null,null,null,null,null,null,null,null,null,null,null,null,null,null,null,null,null,null,null,null,null,null,null,null,null,null,0,null,null,null,null,null,{"$f":"BN77","v":0}]
[]
[]
[null,null,null,null,null,null,null,null,null,null,null,null,null,null,null,null,null,null,null,null,null,null,null,null,null,null,null,null,null,null,null,null,null,null,null,null,null,null,null,null,null,null,null,null,null,null,null,null,null,null,null,null,null,null,null,null,null,null,null,null,null,null,null,null,null,"Brut",null,null,null,null,null,{"$f":"SUM(BT41:BT77)","v":0},null,null,null,null,null,{"$f":"SUM(BZ41:BZ77)","v":0},null,null,null,null,null,{"$f":"SUM(CF41:CF77)","v":0}]
[]
[]
[]
[null,null,null,null,null,null,null,null,null,null,null,null,null,null,null,null,null,null,null,null,null,null,null,null,null,null,"ESTIMATION DU TRANSFERT DE PATRIMOINE, version 2026.02 continué"]
[]
[]
[]
[]
[]
[null,null,"Retenues"]
[]
[]
[null,null,null,"Prêt hypothécaire/emprunt sur bien immobilier inclus dans la succession ci-dessus"]
[]
[null,null,null,"Exemption pour résidence principale (%)",null,null,null,null,null,null,null,null,null,null,null,null,null,null,null,null,null,null,null,null,null,null,null,null,null,null,null,null,null,null,null,null,null,null,null,null,null,null,null,null,null,null,null,null,null,null,null,null,null,null,null,null,null,null,null,null,null,null,null,null,null,null,null,null,null,null,null,{"$f":"+BT57*AO95","v":0}]
[]
[null,null,null,"Déduction cumulative des gains en capital (2/3 du montant de l’exemption). Maximum indexé en ",null,null,null,null,null,null,null,null,null,null,null,null,null,null,null,null,null,null,null,null,null,null,null,null,null,null,null,null,null,null,null,null,null,null,null,null,{"$f":"+VLOOKUP($AZ$29,LTCGE!$B$2:$D$101,3)","v":637500},null,null,null,null,null,"Déduction cumulative des gains en capital à la disposition du client",null,null,null,null,null,null,null,null,null,null,null,null,null,null,null,null,null,{"$f":"AO97","v":637500},null,null,null,null,null,null,{"$f":"MIN(Fre_Life_Cap_Gain,AO97,BT61)","v":0}]
[null,null,null,"fonction de l’inflation de la déduction cumulative des gains en capital à l’âge de comparaison."]
[]
[]
[]
[]
[null,null,null,null,null,null,null,null,null,null,null,null,null,null,null,null,null,null,null,null,null,null,null,null,null,null,null,null,null,null,null,null,null,null,null,null,null,null,null,null,null,null,null,null,null,null,null,null,null,null,null,null,null,null,null,null,null,null,null,null,null,null,null,null,null,"Net",null,null,null,null,null,{"$f":"+BT80-BT95-BT97-BT100","v":0},null,null,null,null,null,{"$f":"+BZ80","v":0},null,null,null,null,null,{"$f":"CF80-Fre_Estate_Mort","v":0}]
[]
[]
[]
[]
[]
[]
[null,null,"Sommaire des liquidités"]
[]
[]
[null,null,null,"Actif liquide",null,null,null,null,null,null,{"$f":"BN41+BN43+BN45+BN47+BN49+BN51+BN53+BN67","v":0},null,null,null,null,null,null,"Prestation de décès à la succession",null,null,null,null,null,null,null,null,null,null,null,null,null,null,null,null,null,{"$f":"BN77","v":0},null,null,null,null,null,null,"Total des espèces requises",null,null,null,null,null,null,null,null,null,null,null,null,null,null,null,null,null,{"$f":"U142","v":{"$error":"#N/A"}},null,null,null,null,null,null,"Excédent / (Déficit)",null,null,null,null,null,null,null,null,null,null,null,null,null,null,{"$f":"K113-BI113+AJ113","v":{"$error":"#N/A"}}]
[]
[]
[]
[]
[]
[]
[null,null,"Passif et dépenses"]
[]
[]
[null,null,null,null,null,null,null,null,null,null,null,null,null,null,null,"En % de la succession",null,null,null,null,"Montant"]
[]
[null,null,null,"Prêt hypothécaire",null,null,null,null,null,null,null,null,null,null,null,null,null,null,null,null,{"$f":"CF93","v":0}]
[]
[null,null,null,"Autres dettes et passifs au décès"]
[]
[null,null,null,"Frais juridiques",null,null,null,null,null,null,null,null,null,null,null,null,null,null,null,null,{"$f":"+P129*$CF$103","v":0}]
[]
[null,null,null,"Frais de comptabilité",null,null,null,null,null,null,null,null,null,null,null,null,null,null,null,null,{"$f":"+P131*$CF$103","v":0}]
[]
[null,null,null,"Honoraires du fiduciaire / liquidateur",null,null,null,null,null,null,null,null,null,null,null,null,null,null,null,null,{"$f":"+P133*$CF$103","v":0}]
[]
[null,null,null,"Autres dépenses finales"]
[]
[null,null,null,"Impôt sur le revenu à payer",null,null,null,null,null,null,null,null,null,null,null,null,null,null,null,null,{"$f":"+(BZ103+BT103)*$CE$29","v":0}]
[]
[null,null,null,"Frais d’homologation à payer",null,null,null,null,null,null,null,null,null,null,null,null,null,null,null,null,{"$f":"+VLOOKUP(BO29,'List French'!$A$5:$D$17,4)","v":{"$error":"#N/A"}}]
[]
[]
[null,null,null,"Diminution attendue de la succession en raison des dettes, des dépenses et des impôts",null,null,null,null,null,null,null,null,null,null,null,null,null,null,null,null,{"$f":"SUM(U125:U139)","v":{"$error":"#N/A"}}]
[]
[]
[]
[null,null,{"$f":"\"Le besoin potentiel d’assurance vie nécessaire pour éviter que votre succession ne diminue s’élève à \"&TEXT(U142,\"#00 000\")&\" $. \"&IF(Fre_Adv_Use_In_Printouts=\"Non\",\"Communiquez avec votre agent d'assurance vie RBC pour trouver la solution d'assurance qui vous convient.\",\"Contactez \"&Fre_Prepared_By&\" pour trouver la solution d’assurance qui vous convient.\")","v":{"$error":"#N/A"}}]

{"sheet":"Considérations","index":5,"n_rows":47,"n_cols":4,"rows_kept":47,"cut":false,"hidden":true,"merged":[[14,2,14,76],[15,2,15,76],[16,2,16,76],[18,3,18,76],[19,3,19,76],[38,3,38,76],[20,3,20,76],[21,3,21,76],[22,3,22,76],[23,3,23,76],[30,2,30,76],[31,2,31,76],[32,2,32,76],[34,3,34,76],[35,3,35,76],[36,3,36,76],[37,3,37,76],[24,3,24,76],[46,3,46,76],[39,3,39,76],[40,3,40,76],[41,3,41,76],[42,3,42,76],[43,3,43,76],[44,3,44,76],[45,3,45,76]]}
[]
[]
[]
[]
[]
[]
[]
[]
[]
[]
[]
[]
[]
[]
[]
[null,null,"Considérations d’ordre général"]
[]
[]
[null,null,1,"La Compagnie d’assurance vie RBC recommande de consulter vos conseillers juridiques, comptables, fiscaux et financiers avant de prendre une décision. Les renseignements contenus dans cette présentation ne devraient pas être interprétés comme des conseils d’ordre fiscal, juridique, comptable ou financier."]
[null,null,2,"La Compagnie d’assurance vie RBC n’accepte aucune responsabilité pour toute perte directe, indirecte ou consécutive découlant des renseignements dans cette présentation."]
[null,null,3,"Des précautions raisonnables ont été prises pour garantir l’exactitude des calculs et des renseignements fournis, mais des erreurs et des omissions sont possibles."]
[null,null,4,"Si une police d’assurance est établie, la couverture sera régie par les conditions de la police. Cette présentation ne fait pas partie d’une police établie."]
[null,null,5,"La souscription d’une police d’assurance vie est un engagement à long terme. Le rachat de la police peut avoir d’importantes répercussions fiscales et financières."]
[null,null,6,"Il ne s’agit pas d’un exposé d’assurance."]
[null,null,7,"Afin d’assurer l’exactitude des chiffres que vous communiquez à vos clients, il est important que vous utilisiez la dernière version de l’outil Estimation du transfert de patrimoine RBC."]
[]
[]
[]
[]
[]
[]
[null,null,"Éléments à considérer dans le calcul et hypothèses"]
[]
[]
[null,null,1,"Le passif successoral est calculé en multipliant le revenu ou gain imposable par le taux d’imposition marginal. Sauf indication contraire, tout autre crédit ou toute autre déduction auxquels le client pourrait avoir droit n’ont pas été pris en compte dans ce calcul."]
[null,null,{"$f":"1+C35","v":2},{"$f":"\"Le taux d’inflation annuel utilisé est de \"&LTCGE!$K$1&\".\"","v":"Le taux d’inflation annuel utilisé est de 30,0%."}]
[null,null,3,"Le montant maximum de l’exemption cumulative des gains en capital pour l’année de comparaison est une estimation. Le plafond réel applicable pour l’année du décès peut être différent de celui indiqué dans la présente présentation."]
[null,null,4,"Il est présumé qu’aucun report de pertes en capital ou autres ne pourra être utilisé pour réduire les gains ou le revenu imposables au cours de l’année du décès."]
[null,null,5,"Les obligations fiscales à l’étranger et les crédits d’impôt potentiels découlant de ces obligations fiscales ne sont pas pris en compte dans le calcul."]
[null,null,6,"Les gains ou les pertes en capital sont calculés en fonction du prix de base rajusté et de la juste valeur de marché projetée des actifs. Les règles spéciales qui s’appliquent aux biens à usage personnel et aux biens meubles désignés ne sont pas prises en compte dans ce calcul."]
[null,null,7,"La valeur future du FERR est calculée en supposant que le montant minimum requis en vertu de la Loi de l’impôt sur le revenu (Canada) sera retiré à partir de l’âge de 71 ans."]
[null,null,8,"Lorsqu’un bénéficiaire a été désigné, on suppose que la valeur de cet élément d’actif ne sera pas incluse dans le calcul de l’impôt successoral."]
[null,null,9,"On suppose qu’aucun retrait ne sera effectué des actifs et qu’ils continueront de croître à un taux de croissance déterminé chaque année. Toutefois, il est possible que la valeur des actifs diminue même si aucun retrait n’est effectué."]
[null,null,10,"La calculatrice ne calcule que le revenu ou le gain qui peut découler de divers éléments d’actif détenus au décès. Elle ne tient pas compte d’autres revenus gagnés au cours de l’année du décès ou de l’une des années précédentes."]
[null,null,11,"L’impôt successoral éventuel est une estimation simplifiée seulement. La calculatrice ne vise pas à remplacer le calcul détaillé selon les règles applicables dans la province ou le territoire visé. "]
[null,null,12,"Nous avons utilisé un taux de 50,0% aux fins d’inclusion du revenu de gains en capital."]
[null,null,13,"Tous les montants, autres que les pourcentages, sont exprimés en dollars canadiens."]

{"sheet":"Raw Data","index":6,"n_rows":39,"n_cols":9,"rows_kept":39,"cut":false,"hidden":true,"merged":[]}
[]
[null,"English"]
[null,null,null,null,null,null,"M"]
[null,"Your beneficiary likely gets",{"$f":"C19","v":{"$error":"#N/A"}},null,null,"Liquid",{"$f":"Input!K115","v":0},{"$f":"G4","v":0},{"$f":"IF($B$2=\"French\",SUBSTITUTE(TEXT(H4/100000,\"# ##0.0\"),\".\",\",\")&\" M$\",H4)","v":0}]
[null,"Your estate pays in taxes etc.",{"$f":"C20","v":{"$error":"#N/A"}},null,null,"Non-Liquid",{"$f":"C7-G4","v":0},{"$f":"G5","v":0},{"$f":"IF($B$2=\"French\",SUBSTITUTE(TEXT(H5/100000,\"# ##0.0\"),\".\",\",\")&\" M$\",H5)","v":0}]
[]
[null,null,{"$f":"Input!$CB$80","v":0}]
[]
[]
[null,"Votre bénéficiaire reçoit",{"$f":"C4","v":{"$error":"#N/A"}},{"$f":"IF($B$2=\"French\",SUBSTITUTE(TEXT(C10/100000,\"# ##0.0\"),\".\",\",\")&\" M$\",C10)","v":{"$error":"#N/A"}}]
[null,"Votre succession paie en impôts, etc",{"$f":"C5","v":{"$error":"#N/A"}},{"$f":"IF($B$2=\"French\",SUBSTITUTE(TEXT(C11/100000,\"# ##0.0\"),\".\",\",\")&\" M$\",C11)","v":{"$error":"#N/A"}}]
[]
[]
[]
[]
[]
[]
[]
[null,"Your beneficiary likely gets",{"$f":"C22-C20","v":{"$error":"#N/A"}},{"$f":"C19","v":{"$error":"#N/A"}},{"$f":"IF($B$2=\"French\",SUBSTITUTE(TEXT(D19/100000,\"# ##0.0\"),\".\",\",\")&\" M$\",D19)","v":{"$error":"#N/A"}}]
[null,"Your estate pays in taxes etc.",{"$f":"Input!$U$144","v":{"$error":"#N/A"}},{"$f":"C20","v":{"$error":"#N/A"}},{"$f":"IF($B$2=\"French\",SUBSTITUTE(TEXT(D20/100000,\"# ##0.0\"),\".\",\",\")&\" M$\",D20)","v":{"$error":"#N/A"}}]
[]
[null,null,{"$f":"Input!$CB$80","v":0},{"$f":"C22","v":0},{"$f":"IF($B$2=\"French\",SUBSTITUTE(TEXT(D22/100000,\"# ##0.0\"),\".\",\",\")&\" M$\",D22)","v":0}]
[]
[]
[]
[null,"Available for beneficiary",{"$f":"C4","v":{"$error":"#N/A"}},{"$f":"IF($B$2=\"French\",SUBSTITUTE(TEXT(C26/100000,\"# ##0.0\"),\".\",\",\")&\" M$\",C26)","v":{"$error":"#N/A"}}]
[null,"Shrinkage due to tax and expenses",{"$f":"C5","v":{"$error":"#N/A"}},{"$f":"IF($B$2=\"French\",SUBSTITUTE(TEXT(C27/100000,\"# ##0.0\"),\".\",\",\")&\" M$\",C27)","v":{"$error":"#N/A"}}]
[]
[]
[]
[]
[]
[null,"Total Estate Value",{"$f":"D22","v":0},{"$f":"IF($B$2=\"French\",SUBSTITUTE(TEXT(C33/100000,\"# ##0.0\"),\".\",\",\")&\" M$\",C33)","v":0}]
[null,"Shrinkage due to tax and other expenses",{"$f":"D20","v":{"$error":"#N/A"}},{"$error":"#N/A"}]
[null,"Liquid Assets",{"$f":"H4","v":0},0]
[]
[null,"Total Estate Value"]
[null,"Shrinkage due to tax and other expenses"]
[null,"Liquid Assets"]

{"sheet":"Notes","index":7,"n_rows":44,"n_cols":2,"rows_kept":44,"cut":false,"hidden":true,"merged":[]}
[]
["Nehal"]
["Done","1. The text in the “about this calculator should be changed as under:"]
[null,"The purpose of this calculator is to estimate the income tax and estate tax that may become payable upon your death based on the assets you may own at that time and show its impact on your estate. The calculation assumes that you are either single or last to die spouse/common law-partner."]
["Done","2. The width of client information section should be expanded to match the size of other sections. May be client name, age and comparison age would appear in one row, and the province and marginal tax rate would appear in next row."]
[null,"3. If possible design the calculator such that if the client’s current age is 72 or higher, the RRSP row does not appear."]
["Will see what I can do during the coding part of this calculator. Might be able to hide the RRSP row altogether when the age is high enough."]
["Done","4. The formulas in “data entry” tab of the excel file Is end may be directly included in this input tab. The we will not need data entry tab."]
["It will","5. The column width needs to be adjusted so that all content fit in either portrait or landscape orientation."]
["It will","6. Also the $ amount cell should adjust auto-adjust the width based on the value entered/calculated. The value will be without decimals (except for %)."]
["Done","7. Please expand the width of deductions section so that columns align with the section above."]
[null,"8. If we are going with pie chart, the it may be added besides the “liabilities and expenses” section."]
["Done","9. The “total” in “liabilities and expenses” section may be retitled as “expected shrinkage in estate due liabilities, expenses and taxes”. That may help lead the conversation to potential insurance need."]
[null,"10. Mitch / Jean Guy – please suggest a client-friendly name for this calculator based on your experience in the field. Not sure if we want to call the final version “terminal tax calculator”."]
[]
[]
[]
[]
["Mitch"]
["Done","In the “about this calculator” section, we can add a sentence that says “A permanent life insurance policy like RBC Insurance’s Growth Insurance or Growth Insurance Plus may provide an excellent solution for your estate’s liquidity shortfall”."]
["Done","Most of the headings are pretty self explanatory but for the two that say “please specify”, I would eliminate that wording as there is nowhere on the sheet to specify.  I don’t want to put a bunch of explanatory notes where not necessary.  I would like to keep this simple and flexible."]
["Done","In deductions, I would change “real estate property” to “real property”"]
["Done","I would like to see a title like “Estate Liability Calculator” as the calculator encompasses taxes and other liabilities"]
[null,"I agree with Nehal’s Point 3, but another solution could be to not allow RRSP input with some sort of warning.  Whatever is easiest."]
[null,"Personally, I like the left alignments and different widths for the different sections."]
[]
[null,"The purpose of this calculator is to estimate the income tax and estate administration tax/probate fees that may become payable upon your death based on the assets you may own at that time and show its impact on your estate. The calculation assumes that you are either single or last to die spouse/common law-partner."]
[]
["Nehal - 2nd email"]
[null,"1. Following cells cannot have value less than zero."]
["done","A. All data entry cells"]
["done","B. W51 (i.e. loss on disposition of principal residence is deemed to be nil)"]
["done","2. Cell W63 cannot be positive (i.e. terminal loss amount should be entered as negative)."]
["done","3. The maximum value in cell W90 should be lower of (i) K90, and (ii) W55. The minimum value would be zero."]
["yes","4. I am assuming all greyed out cells will be protected."]
["when protected, formulae are not visible","5. Is it possible to hide the formula that appear in various cells in the final version?"]
[]
["Note does not move","1. The notes in cell BJ43, BJ47 and BJ86 should appear similar to the comment in BJ59."]
["Done","2. Need to add FV calculation formula in BD61 and BD63."]
["Done","3. Need to enter gain/loss calculation formula in cell BJ61 and BJ63 – the formula will be similar to the one in cell BJ39."]
["Done","4. Please delete the cell AG65 and AS65."]
["Done","5. Please add following note to cell BD65 – This is the lump sum amount to be paid on termination of the annuity."]
["Done","6. Please add following note to cell BJ65 – The lump sum amount to be paid less the adjusted cost basis of the annuity at death. If negative – enter zero. Is it possible to add a validating macro in the background that will prompt the user to correct the data entry if a negative amount is entered."]
["Done","7. Also, a $ sign should appear before all amounts, including the values in pie chart."]

{"sheet":"List","index":8,"n_rows":72,"n_cols":4,"rows_kept":72,"cut":false,"hidden":true,"merged":[]}
["Capital gains inclusion factor",0.5]
[]
["Province","Estate tax"]
[]
["AB",{"$f":"+'Estate tax rates'!H7","v":0},"Alberta",{"$f":"B5","v":0}]
["BC",{"$f":"+'Estate tax rates'!H12","v":0},"British Columbia",{"$f":"B6","v":0}]
["MB",{"$f":"+'Estate tax rates'!H15","v":0},"Manitoba",0]
["NB",{"$f":"+'Estate tax rates'!H22","v":0},"New Brunswick",0]
["NL",{"$f":"+'Estate tax rates'!H26","v":0},"Newfoundland & Labrador",0]
["NT",{"$f":"+'Estate tax rates'!H33","v":0},"Northwest Territories",0]
["NS",{"$f":"+'Estate tax rates'!H40","v":0},"Nova Scotia",0]
["NU",{"$f":"+'Estate tax rates'!H47","v":0},"Nunavut",0]
["ON ",{"$f":"+'Estate tax rates'!H51","v":0},"Ontario",0]
["PE",{"$f":"+'Estate tax rates'!H58","v":0},"Prince Edward Island",0]
["QC",{"$f":"+'Estate tax rates'!H61","v":0},"Quebec",0]
["SK",{"$f":"+'Estate tax rates'!H65","v":0},"Saskatchewan",0]
["YT",{"$f":"+'Estate tax rates'!H69","v":0},"Yukon",0]
[]
["Data validation for beneficiary designation"]
["Yes","Oui"]
["No","Non"]
[]
["Investment rate of return"]
[]
[2.5000000000000001E-3]
[{"$f":"+A25+0.25%","v":5.0000000000000001E-3}]
[{"$f":"+A26+0.25%","v":7.4999999999999997E-3}]
[0.01]
[1.2500000000000001E-2]
[1.5000000000000001E-2]
[1.7500000000000002E-2]
[0.02]
[2.2499999999999999E-2]
[2.4999999999999998E-2]
[2.7499999999999997E-2]
[2.9999999999999995E-2]
[3.2499999999999994E-2]
[3.4999999999999996E-2]
[3.7499999999999999E-2]
[0.04]
[4.2500000000000003E-2]
[4.5000000000000005E-2]
[4.7500000000000007E-2]
[5.000000000000001E-2]
[5.2500000000000012E-2]
[5.5000000000000014E-2]
[5.7500000000000016E-2]
[6.0000000000000019E-2]
[6.2500000000000014E-2]
[6.5000000000000016E-2]
[6.7500000000000018E-2]
[7.0000000000000021E-2]
[7.2500000000000023E-2]
[7.5000000000000025E-2]
[7.7500000000000027E-2]
[8.0000000000000029E-2]
[8.2500000000000032E-2]
[8.5000000000000034E-2]
[8.7500000000000036E-2]
[9.0000000000000038E-2]
[9.2500000000000041E-2]
[9.5000000000000043E-2]
[9.7500000000000045E-2]
[0.10000000000000005]
[0.10250000000000005]
[0.10500000000000005]
[0.10750000000000005]
[0.11000000000000006]
[0.11250000000000006]
[0.11500000000000006]
[0.11750000000000006]
[0.12000000000000006]

{"sheet":"List French","index":9,"n_rows":72,"n_cols":4,"rows_kept":72,"cut":false,"hidden":true,"merged":[]}
["Capital gains inclusion factor",{"$f":"+List!B1","v":0.5}]
[]
["Province","Estate tax"]
[]
["AB",{"$f":"+'Estate tax rates French'!H7","v":0},"Alberta",{"$f":"B5","v":0}]
["BC",{"$f":"+'Estate tax rates French'!H12","v":0},"British Columbia",{"$f":"B6","v":0}]
["MB",{"$f":"+'Estate tax rates French'!H15","v":0},"Manitoba",0]
["NB",{"$f":"+'Estate tax rates French'!H22","v":0},"New Brunswick",0]
["NL",{"$f":"+'Estate tax rates French'!H26","v":0},"Newfoundland & Labrador",0]
["NT",{"$f":"+'Estate tax rates French'!H33","v":0},"Northwest Territories",0]
["NS",{"$f":"+'Estate tax rates French'!H40","v":0},"Nova Scotia",0]
["NU",{"$f":"+'Estate tax rates French'!H47","v":0},"Nunavut",0]
["ON ",{"$f":"+'Estate tax rates French'!H51","v":0},"Ontario",0]
["PE",{"$f":"+'Estate tax rates French'!H58","v":0},"Prince Edward Island",0]
["QC",{"$f":"+'Estate tax rates French'!H61","v":0},"Quebec",0]
["SK",{"$f":"+'Estate tax rates French'!H65","v":0},"Saskatchewan",0]
["YT",{"$f":"+'Estate tax rates French'!H69","v":0},"Yukon",0]
[]
["Data validation for beneficiary designation"]
["Yes","Oui"]
["No","Non"]
[]
["Investment rate of return"]
[]
[{"$f":"+List!A25","v":2.5000000000000001E-3}]
[{"$f":"+List!A26","v":5.0000000000000001E-3}]
[{"$f":"+List!A27","v":7.4999999999999997E-3}]
[{"$f":"+List!A28","v":0.01}]
[{"$f":"+List!A29","v":1.2500000000000001E-2}]
[{"$f":"+List!A30","v":1.5000000000000001E-2}]
[{"$f":"+List!A31","v":1.7500000000000002E-2}]
[{"$f":"+List!A32","v":0.02}]
[{"$f":"+List!A33","v":2.2499999999999999E-2}]
[{"$f":"+List!A34","v":2.4999999999999998E-2}]
[{"$f":"+List!A35","v":2.7499999999999997E-2}]
[{"$f":"+List!A36","v":2.9999999999999995E-2}]
[{"$f":"+List!A37","v":3.2499999999999994E-2}]
[{"$f":"+List!A38","v":3.4999999999999996E-2}]
[{"$f":"+List!A39","v":3.7499999999999999E-2}]
[{"$f":"+List!A40","v":0.04}]
[{"$f":"+List!A41","v":4.2500000000000003E-2}]
[{"$f":"+List!A42","v":4.5000000000000005E-2}]
[{"$f":"+List!A43","v":4.7500000000000007E-2}]
[{"$f":"+List!A44","v":5.000000000000001E-2}]
[{"$f":"+List!A45","v":5.2500000000000012E-2}]
[{"$f":"+List!A46","v":5.5000000000000014E-2}]
[{"$f":"+List!A47","v":5.7500000000000016E-2}]
[{"$f":"+List!A48","v":6.0000000000000019E-2}]
[{"$f":"+List!A49","v":6.2500000000000014E-2}]
[{"$f":"+List!A50","v":6.5000000000000016E-2}]
[{"$f":"+List!A51","v":6.7500000000000018E-2}]
[{"$f":"+List!A52","v":7.0000000000000021E-2}]
[{"$f":"+List!A53","v":7.2500000000000023E-2}]
[{"$f":"+List!A54","v":7.5000000000000025E-2}]
[{"$f":"+List!A55","v":7.7500000000000027E-2}]
[{"$f":"+List!A56","v":8.0000000000000029E-2}]
[{"$f":"+List!A57","v":8.2500000000000032E-2}]
[{"$f":"+List!A58","v":8.5000000000000034E-2}]
[{"$f":"+List!A59","v":8.7500000000000036E-2}]
[{"$f":"+List!A60","v":9.0000000000000038E-2}]
[{"$f":"+List!A61","v":9.2500000000000041E-2}]
[{"$f":"+List!A62","v":9.5000000000000043E-2}]
[{"$f":"+List!A63","v":9.7500000000000045E-2}]
[{"$f":"+List!A64","v":0.10000000000000005}]
[{"$f":"+List!A65","v":0.10250000000000005}]
[{"$f":"+List!A66","v":0.10500000000000005}]
[{"$f":"+List!A67","v":0.10750000000000005}]
[{"$f":"+List!A68","v":0.11000000000000006}]
[{"$f":"+List!A69","v":0.11250000000000006}]
[{"$f":"+List!A70","v":0.11500000000000006}]
[{"$f":"+List!A71","v":0.11750000000000006}]
[{"$f":"+List!A72","v":0.12000000000000006}]

{"sheet":"LTCGE","index":10,"n_rows":102,"n_cols":11,"rows_kept":102,"cut":false,"hidden":true,"merged":[]}
["Year","Age","LTCGE limit","LTCGD limit",null,null,null,null,"Inflation factor",0.03,{"$f":"SUBSTITUTE(TEXT(J1*10,\"0.0%\"),\".\",\",\")","v":"30,0%"}]
[{"$f":"YEAR(NOW())","v":2026},{"$f":"Input!$AJ$29","v":0},1275000,{"$f":"+C2*1/2*100%","v":637500}]
[{"$f":"+A2+1","v":2027},{"$f":"+B2+1","v":1},{"$f":"+C2+(C2*$J$1)","v":1313250},{"$f":"+C3*1/2*100%","v":656625}]
[{"$f":"+A3+1","v":2028},{"$f":"+B3+1","v":2},{"$f":"+C3+(C3*$J$1)","v":1352647.5},676323.75]
[2029,3,1393226.925,696613.46250000002]
[2030,4,1435023.73275,717511.86637499998]
[2031,5,1478074.4447325,739037.22236625]
[2032,6,1522416.6780744749,761208.33903723746]
[2033,7,1568089.1784167092,784044.58920835459]
[2034,8,1615131.8537692104,807565.9268846052]
[2035,9,1663585.8093822866,831792.90469114331]
[2036,10,1713493.3836637551,856746.69183187757]
[2037,11,1764898.1851736677,882449.09258683387]
[2038,12,1817845.1307288778,908922.56536443892]
[2039,13,1872380.4846507441,936190.24232537206]
[2040,14,1928551.8991902664,964275.94959513319]
[2041,15,1986408.4561659743,993204.22808298713]
[2042,16,2046000.7098509534,1023000.3549254767]
[2043,17,2107380.7311464818,1053690.3655732409]
[2044,18,2170602.1530808765,1085301.0765404382]
[2045,19,2235720.2176733026,1117860.1088366513]
[2046,20,2302791.8242035019,1151395.912101751]
[2047,21,2371875.5789296068,1185937.7894648034]
[2048,22,2443031.8462974951,1221515.9231487475]
[2049,23,2516322.8016864201,1258161.4008432101]
[2050,24,2591812.4857370127,1295906.2428685063]
[2051,25,2669566.8603091231,1334783.4301545615]
[2052,26,2749653.8661183966,1374826.9330591983]
[2053,27,2832143.4821019485,1416071.7410509742]
[2054,28,2917107.7865650067,1458553.8932825034]
[2055,29,3004621.020161957,1502310.5100809785]
[2056,30,3094759.6507668155,1547379.8253834078]
[2057,31,3187602.4402898201,1593801.22014491]
[2058,32,3283230.5134985149,1641615.2567492574]
[2059,33,3381727.4289034703,1690863.7144517351]
[2060,34,3483179.2517705746,1741589.6258852873]
[2061,35,3587674.6293236921,1793837.314661846]
[2062,36,3695304.868203403,1847652.4341017015]
[2063,37,3806164.014249505,1903082.0071247525]
[2064,38,3920348.9346769904,1960174.4673384952]
[2065,39,4037959.4027173002,2018979.7013586501]
[2066,40,4159098.184798819,2079549.0923994095]
[2067,41,4283871.1303427834,2141935.5651713917]
[2068,42,4412387.2642530669,2206193.6321265334]
[2069,43,4544758.8821806591,2272379.4410903296]
[2070,44,4681101.648646079,2340550.8243230395]
[2071,45,4821534.698105461,2410767.3490527305]
[2072,46,4966180.7390486244,2483090.3695243122]
[2073,47,5115166.161220083,2557583.0806100415]
[2074,48,5268621.1460566856,2634310.5730283428]
[2075,49,5426679.7804383859,2713339.890219193]
[2076,50,5589480.1738515375,2794740.0869257688]
[2077,51,5757164.579067084,2878582.289533542]
[2078,52,5929879.5164390961,2964939.758219548]
[2079,53,6107775.9019322693,3053887.9509661347]
[2080,54,6291009.1789902374,3145504.5894951187]
[2081,55,6479739.4543599449,3239869.7271799725]
[2082,56,6674131.6379907429,3337065.8189953715]
[2083,57,6874355.5871304655,3437177.7935652328]
[2084,58,7080586.2547443798,3540293.1273721899]
[2085,59,7293003.8423867114,3646501.9211933557]
[2086,60,7511793.9576583123,3755896.9788291561]
[2087,61,7737147.7763880612,3868573.8881940306]
[2088,62,7969262.2096797032,3984631.1048398516]
[2089,63,8208340.0759700947,4104170.0379850473]
[2090,64,8454590.2782491967,4227295.1391245984]
[2091,65,8708227.9865966719,{"$f":"+C67*1/2*100%","v":4354113.9932983359}]
[{"$f":"+A67+1","v":2092},{"$f":"+B67+1","v":66},{"$f":"+C67+(C67*$J$1)","v":8969474.8261945713},4484737.4130972857]
[2093,67,9238559.0709804092,4619279.5354902046]
[2094,68,9515715.8431098219,4757857.921554911]
[2095,69,9801187.3184031174,4900593.6592015587]
[2096,70,10095222.93795521,5047611.468977605]
[2097,71,10398079.626093866,5199039.8130469332]
[2098,72,10710022.014876682,5355011.0074383412]
[2099,73,11031322.675322983,5515661.3376614917]
[2100,74,11362262.355582673,5681131.1777913366]
[2101,75,11703130.226250153,5851565.1131250765]
[2102,76,12054224.133037658,6027112.0665188292]
[2103,77,12415850.857028788,6207925.428514394]
[2104,78,12788326.382739652,6394163.191369826]
[2105,79,13171976.174221842,6585988.0871109208]
[2106,80,13567135.459448498,6783567.7297242489]
[2107,81,13974149.523231953,6987074.7616159767]
[2108,82,14393374.008928912,7196687.0044644559]
[2109,83,14825175.229196779,7412587.6145983897]
[2110,84,15269930.486072682,7634965.2430363409]
[2111,85,15728028.400654862,7864014.2003274309]
[2112,86,16199869.252674507,8099934.6263372535]
[2113,87,16685865.330254743,8342932.6651273714]
[2114,88,17186441.290162385,8593220.6450811923]
[2115,89,17702034.528867256,8851017.2644336279]
[2116,90,18233095.564733274,9116547.7823666371]
[2117,91,18780088.431675274,9390044.215837637]
[2118,92,19343491.084625531,9671745.5423127655]
[2119,93,19923795.817164298,9961897.9085821491]
[2120,94,20521509.691679228,10260754.845839614]
[2121,95,21137154.982429605,10568577.491214802]
[2122,96,21771269.631902494,10885634.815951247]
[2123,97,22424407.720859569,11212203.860429784]
[2124,98,23097139.952485356,11548569.976242678]
[2125,99,23790054.151059918,11895027.075529959]
[2126,100,{"$f":"+C101+(C101*$J$1)","v":24503755.775591716},{"$f":"+C102*1/2*100%","v":12251877.887795858}]

{"sheet":"LTCGE French","index":11,"n_rows":102,"n_cols":4,"rows_kept":102,"cut":false,"hidden":true,"merged":[]}
["Year","Age","LTCGE limit","LTCGD limit"]
[{"$f":"YEAR(NOW())","v":2026},{"$f":"Entrée!$AK$29","v":0},{"$f":"+LTCGE!C2","v":1275000},{"$f":"+C2*1/2*100%","v":637500}]
[{"$f":"+A2+1","v":2027},{"$f":"+B2+1","v":1},{"$f":"+LTCGE!C3","v":1313250},{"$f":"+C3*1/2*100%","v":656625}]
[{"$f":"+A3+1","v":2028},2,{"$f":"+LTCGE!C4","v":1352647.5},676323.75]
[2029,3,{"$f":"+LTCGE!C5","v":1393226.925},696613.46250000002]
[2030,4,{"$f":"+LTCGE!C6","v":1435023.73275},717511.86637499998]
[2031,5,{"$f":"+LTCGE!C7","v":1478074.4447325},739037.22236625]
[2032,6,{"$f":"+LTCGE!C8","v":1522416.6780744749},761208.33903723746]
[2033,7,{"$f":"+LTCGE!C9","v":1568089.1784167092},784044.58920835459]
[2034,8,{"$f":"+LTCGE!C10","v":1615131.8537692104},807565.9268846052]
[2035,9,{"$f":"+LTCGE!C11","v":1663585.8093822866},831792.90469114331]
[2036,10,{"$f":"+LTCGE!C12","v":1713493.3836637551},856746.69183187757]
[2037,11,{"$f":"+LTCGE!C13","v":1764898.1851736677},882449.09258683387]
[2038,12,{"$f":"+LTCGE!C14","v":1817845.1307288778},908922.56536443892]
[2039,13,{"$f":"+LTCGE!C15","v":1872380.4846507441},936190.24232537206]
[2040,14,{"$f":"+LTCGE!C16","v":1928551.8991902664},964275.94959513319]
[2041,15,{"$f":"+LTCGE!C17","v":1986408.4561659743},993204.22808298713]
[2042,16,{"$f":"+LTCGE!C18","v":2046000.7098509534},1023000.3549254767]
[2043,17,{"$f":"+LTCGE!C19","v":2107380.7311464818},1053690.3655732409]
[{"$f":"+A19+1","v":2044},18,{"$f":"+LTCGE!C20","v":2170602.1530808765},1085301.0765404382]
[2045,19,{"$f":"+LTCGE!C21","v":2235720.2176733026},1117860.1088366513]
[2046,20,{"$f":"+LTCGE!C22","v":2302791.8242035019},1151395.912101751]
[2047,21,{"$f":"+LTCGE!C23","v":2371875.5789296068},1185937.7894648034]
[2048,22,{"$f":"+LTCGE!C24","v":2443031.8462974951},1221515.9231487475]
[2049,23,{"$f":"+LTCGE!C25","v":2516322.8016864201},1258161.4008432101]
[2050,24,{"$f":"+LTCGE!C26","v":2591812.4857370127},1295906.2428685063]
[2051,25,{"$f":"+LTCGE!C27","v":2669566.8603091231},1334783.4301545615]
[2052,26,{"$f":"+LTCGE!C28","v":2749653.8661183966},1374826.9330591983]
[2053,27,{"$f":"+LTCGE!C29","v":2832143.4821019485},1416071.7410509742]
[2054,28,{"$f":"+LTCGE!C30","v":2917107.7865650067},1458553.8932825034]
[2055,29,{"$f":"+LTCGE!C31","v":3004621.020161957},1502310.5100809785]
[2056,30,{"$f":"+LTCGE!C32","v":3094759.6507668155},1547379.8253834078]
[2057,31,{"$f":"+LTCGE!C33","v":3187602.4402898201},1593801.22014491]
[2058,32,{"$f":"+LTCGE!C34","v":3283230.5134985149},1641615.2567492574]
[2059,33,{"$f":"+LTCGE!C35","v":3381727.4289034703},1690863.7144517351]
[{"$f":"+A35+1","v":2060},34,{"$f":"+LTCGE!C36","v":3483179.2517705746},1741589.6258852873]
[2061,35,{"$f":"+LTCGE!C37","v":3587674.6293236921},1793837.314661846]
[2062,36,{"$f":"+LTCGE!C38","v":3695304.868203403},1847652.4341017015]
[2063,37,{"$f":"+LTCGE!C39","v":3806164.014249505},1903082.0071247525]
[2064,38,{"$f":"+LTCGE!C40","v":3920348.9346769904},1960174.4673384952]
[2065,39,{"$f":"+LTCGE!C41","v":4037959.4027173002},2018979.7013586501]
[2066,40,{"$f":"+LTCGE!C42","v":4159098.184798819},2079549.0923994095]
[2067,41,{"$f":"+LTCGE!C43","v":4283871.1303427834},2141935.5651713917]
[2068,42,{"$f":"+LTCGE!C44","v":4412387.2642530669},2206193.6321265334]
[2069,43,{"$f":"+LTCGE!C45","v":4544758.8821806591},2272379.4410903296]
[2070,44,{"$f":"+LTCGE!C46","v":4681101.648646079},2340550.8243230395]
[2071,45,{"$f":"+LTCGE!C47","v":4821534.698105461},2410767.3490527305]
[2072,46,{"$f":"+LTCGE!C48","v":4966180.7390486244},2483090.3695243122]
[2073,47,{"$f":"+LTCGE!C49","v":5115166.161220083},2557583.0806100415]
[2074,48,{"$f":"+LTCGE!C50","v":5268621.1460566856},2634310.5730283428]
[2075,49,{"$f":"+LTCGE!C51","v":5426679.7804383859},2713339.890219193]
[{"$f":"+A51+1","v":2076},50,{"$f":"+LTCGE!C52","v":5589480.1738515375},2794740.0869257688]
[2077,51,{"$f":"+LTCGE!C53","v":5757164.579067084},2878582.289533542]
[2078,52,{"$f":"+LTCGE!C54","v":5929879.5164390961},2964939.758219548]
[2079,53,{"$f":"+LTCGE!C55","v":6107775.9019322693},3053887.9509661347]
[2080,54,{"$f":"+LTCGE!C56","v":6291009.1789902374},3145504.5894951187]
[2081,55,{"$f":"+LTCGE!C57","v":6479739.4543599449},3239869.7271799725]
[2082,56,{"$f":"+LTCGE!C58","v":6674131.6379907429},3337065.8189953715]
[2083,57,{"$f":"+LTCGE!C59","v":6874355.5871304655},3437177.7935652328]
[2084,58,{"$f":"+LTCGE!C60","v":7080586.2547443798},3540293.1273721899]
[2085,59,{"$f":"+LTCGE!C61","v":7293003.8423867114},3646501.9211933557]
[2086,60,{"$f":"+LTCGE!C62","v":7511793.9576583123},3755896.9788291561]
[2087,61,{"$f":"+LTCGE!C63","v":7737147.7763880612},3868573.8881940306]
[2088,62,{"$f":"+LTCGE!C64","v":7969262.2096797032},3984631.1048398516]
[2089,63,{"$f":"+LTCGE!C65","v":8208340.0759700947},4104170.0379850473]
[2090,64,{"$f":"+LTCGE!C66","v":8454590.2782491967},4227295.1391245984]
[2091,65,{"$f":"+LTCGE!C67","v":8708227.9865966719},{"$f":"+C67*1/2*100%","v":4354113.9932983359}]
[{"$f":"+A67+1","v":2092},66,{"$f":"+LTCGE!C68","v":8969474.8261945713},4484737.4130972857]
[2093,67,{"$f":"+LTCGE!C69","v":9238559.0709804092},4619279.5354902046]
[2094,68,{"$f":"+LTCGE!C70","v":9515715.8431098219},4757857.921554911]
[2095,69,{"$f":"+LTCGE!C71","v":9801187.3184031174},4900593.6592015587]
[2096,70,{"$f":"+LTCGE!C72","v":10095222.93795521},5047611.468977605]
[2097,71,{"$f":"+LTCGE!C73","v":10398079.626093866},5199039.8130469332]
[2098,72,{"$f":"+LTCGE!C74","v":10710022.014876682},5355011.0074383412]
[2099,73,{"$f":"+LTCGE!C75","v":11031322.675322983},5515661.3376614917]
[2100,74,{"$f":"+LTCGE!C76","v":11362262.355582673},5681131.1777913366]
[2101,75,{"$f":"+LTCGE!C77","v":11703130.226250153},5851565.1131250765]
[2102,76,{"$f":"+LTCGE!C78","v":12054224.133037658},6027112.0665188292]
[2103,77,{"$f":"+LTCGE!C79","v":12415850.857028788},6207925.428514394]
[2104,78,{"$f":"+LTCGE!C80","v":12788326.382739652},6394163.191369826]
[2105,79,{"$f":"+LTCGE!C81","v":13171976.174221842},6585988.0871109208]
[2106,80,{"$f":"+LTCGE!C82","v":13567135.459448498},6783567.7297242489]
[2107,81,{"$f":"+LTCGE!C83","v":13974149.523231953},6987074.7616159767]
[{"$f":"+A83+1","v":2108},82,{"$f":"+LTCGE!C84","v":14393374.008928912},7196687.0044644559]
[2109,83,{"$f":"+LTCGE!C85","v":14825175.229196779},7412587.6145983897]
[2110,84,{"$f":"+LTCGE!C86","v":15269930.486072682},7634965.2430363409]
[2111,85,{"$f":"+LTCGE!C87","v":15728028.400654862},7864014.2003274309]
[2112,86,{"$f":"+LTCGE!C88","v":16199869.252674507},8099934.6263372535]
[2113,87,{"$f":"+LTCGE!C89","v":16685865.330254743},8342932.6651273714]
[2114,88,{"$f":"+LTCGE!C90","v":17186441.290162385},8593220.6450811923]
[2115,89,{"$f":"+LTCGE!C91","v":17702034.528867256},8851017.2644336279]
[2116,90,{"$f":"+LTCGE!C92","v":18233095.564733274},9116547.7823666371]
[2117,91,{"$f":"+LTCGE!C93","v":18780088.431675274},9390044.215837637]
[2118,92,{"$f":"+LTCGE!C94","v":19343491.084625531},9671745.5423127655]
[2119,93,{"$f":"+LTCGE!C95","v":19923795.817164298},9961897.9085821491]
[2120,94,{"$f":"+LTCGE!C96","v":20521509.691679228},10260754.845839614]
[2121,95,{"$f":"+LTCGE!C97","v":21137154.982429605},10568577.491214802]
[2122,96,{"$f":"+LTCGE!C98","v":21771269.631902494},10885634.815951247]
[2123,97,{"$f":"+LTCGE!C99","v":22424407.720859569},11212203.860429784]
[{"$f":"+A99+1","v":2124},98,{"$f":"+LTCGE!C100","v":23097139.952485356},11548569.976242678]
[2125,99,{"$f":"+LTCGE!C101","v":23790054.151059918},11895027.075529959]
[2126,100,{"$f":"+LTCGE!C102","v":24503755.775591716},{"$f":"+C102*1/2*100%","v":12251877.887795858}]

{"sheet":"RRIF","index":12,"n_rows":43,"n_cols":6,"rows_kept":43,"cut":false,"hidden":true,"merged":[]}
[]
["Age on January 1st","RRIF factor","Value on January 1st","Minimum withdrawal","Annual growth","Cl.bal."]
[]
[71,5.28E-2,{"$f":"+IF(Eng_Client_Age<72,IF(AND(Eng_Cont_Yrs_RRSP>0,Eng_Cont_Yrs_RRSP<72-Eng_Client_Age),FV(Eng_Rate_RRSP,71-Eng_Client_Age-Eng_Cont_Yrs_RRSP,0,-FV(Eng_Rate_RRSP,Eng_Cont_Yrs_RRSP,-Eng_Cont_RRSP,-Eng_FMV_RRSP,1),1),FV(Eng_Rate_RRSP,71-Eng_Client_Age,-Eng_Cont_RRSP,-Eng_FMV_RRSP,1)),IF(A4=Eng_Client_Age,Eng_FMV_RRIF,0))","v":0},{"$f":"+C4*B4","v":0},{"$f":"+(C4-D4)*IF(Eng_Rate_RRIF>0,Eng_Rate_RRIF,Eng_Rate_RRSP)","v":0},{"$f":"+C4-D4+E4","v":0}]
[{"$f":"+A4+1","v":72},5.3999999999999999E-2,{"$f":"+IF(Eng_Client_Age=A5,Eng_FMV_RRIF,0)+F4","v":0},{"$f":"+C5*B5","v":0},0,{"$f":"+C5-D5+E5","v":0}]
[{"$f":"+A5+1","v":73},5.5300000000000002E-2,0,0,0,{"$f":"+C6-D6+E6","v":0}]
[74,5.67E-2,0,0,0,0]
[75,5.8200000000000002E-2,0,0,0,0]
[76,5.9799999999999999E-2,0,0,0,0]
[77,6.1699999999999998E-2,0,0,0,0]
[78,6.3600000000000004E-2,0,0,0,0]
[79,6.5799999999999997E-2,0,0,0,0]
[80,6.8199999999999997E-2,0,0,0,0]
[81,7.0800000000000002E-2,0,0,0,0]
[82,7.3800000000000004E-2,0,0,0,0]
[83,7.7100000000000002E-2,0,0,0,0]
[84,8.0799999999999997E-2,0,0,0,0]
[85,8.5099999999999995E-2,0,0,0,0]
[86,8.9899999999999994E-2,0,0,0,0]
[87,9.5500000000000002E-2,0,0,0,0]
[88,0.1021,0,0,0,0]
[89,0.1099,0,0,0,0]
[90,0.1192,0,0,0,0]
[91,0.13059999999999999,0,0,0,0]
[92,0.1449,0,0,0,0]
[93,0.16339999999999999,0,0,0,0]
[94,0.18790000000000001,0,0,0,0]
[95,0.2,0,0,0,0]
[96,0.2,0,0,0,0]
[97,0.2,0,0,0,0]
[98,0.2,0,0,0,0]
[99,0.2,0,0,0,0]
[100,0.2,0,0,0,0]
[{"$f":"+A33+1","v":101},0.2,0,{"$f":"+C34*B34","v":0},0,0]
[102,0.2,0,0,0,0]
[103,0.2,0,0,0,0]
[104,0.2,0,0,0,0]
[{"$f":"+A37+1","v":105},0.2,0,{"$f":"+C38*B38","v":0},0,0]
[106,0.2,0,0,0,0]
[107,0.2,0,0,0,0]
[108,0.2,0,0,0,0]
[109,0.2,0,0,0,0]
[110,0.2,0,0,0,0]

{"sheet":"RRIF French","index":13,"n_rows":43,"n_cols":6,"rows_kept":43,"cut":false,"hidden":true,"merged":[]}
[]
["Age on January 1st","RRIF factor","Value on January 1st","Minimum withdrawal","Annual growth","Cl.bal."]
[]
[{"$f":"+RRIF!A4","v":71},{"$f":"+RRIF!B4","v":5.28E-2},{"$f":"+IF(Fre_Client_Age<72,IF(AND(Fre_Cont_Yrs_RRSP>0,Fre_Cont_Yrs_RRSP<72-Fre_Client_Age),FV(Fre_Rate_RRSP,71-Fre_Client_Age-Fre_Cont_Yrs_RRSP,0,-FV(Fre_Rate_RRSP,Fre_Cont_Yrs_RRSP,-Fre_Cont_RRSP,-Fre_FMV_RRSP,1),1),FV(Fre_Rate_RRSP,71-Fre_Client_Age,-Fre_Cont_RRSP,-Fre_FMV_RRSP,1)),IF(A4=Fre_Client_Age,Fre_FMV_RRIF,0))","v":0},{"$f":"+C4*B4","v":0},{"$f":"+(C4-D4)*IF(Fre_Rate_RRIF>0,Fre_Rate_RRIF,Fre_Rate_RRSP)","v":0},{"$f":"+C4-D4+E4","v":0}]
[{"$f":"+RRIF!A5","v":72},{"$f":"+RRIF!B5","v":5.3999999999999999E-2},{"$f":"+IF(Fre_Client_Age=A5,Fre_FMV_RRIF,0)+F4","v":0},{"$f":"+C5*B5","v":0},0,{"$f":"+C5-D5+E5","v":0}]
[{"$f":"+RRIF!A6","v":73},{"$f":"+RRIF!B6","v":5.5300000000000002E-2},0,0,0,0]
[{"$f":"+RRIF!A7","v":74},{"$f":"+RRIF!B7","v":5.67E-2},0,0,0,0]
[{"$f":"+RRIF!A8","v":75},{"$f":"+RRIF!B8","v":5.8200000000000002E-2},0,0,0,0]
[{"$f":"+RRIF!A9","v":76},{"$f":"+RRIF!B9","v":5.9799999999999999E-2},0,0,0,0]
[{"$f":"+RRIF!A10","v":77},{"$f":"+RRIF!B10","v":6.1699999999999998E-2},0,0,0,0]
[{"$f":"+RRIF!A11","v":78},{"$f":"+RRIF!B11","v":6.3600000000000004E-2},0,0,0,0]
[{"$f":"+RRIF!A12","v":79},{"$f":"+RRIF!B12","v":6.5799999999999997E-2},0,0,0,0]
[{"$f":"+RRIF!A13","v":80},{"$f":"+RRIF!B13","v":6.8199999999999997E-2},0,0,0,0]
[{"$f":"+RRIF!A14","v":81},{"$f":"+RRIF!B14","v":7.0800000000000002E-2},0,0,0,0]
[{"$f":"+RRIF!A15","v":82},{"$f":"+RRIF!B15","v":7.3800000000000004E-2},0,0,0,0]
[{"$f":"+RRIF!A16","v":83},{"$f":"+RRIF!B16","v":7.7100000000000002E-2},0,0,0,0]
[{"$f":"+RRIF!A17","v":84},{"$f":"+RRIF!B17","v":8.0799999999999997E-2},0,0,0,0]
[{"$f":"+RRIF!A18","v":85},{"$f":"+RRIF!B18","v":8.5099999999999995E-2},0,0,0,0]
[{"$f":"+RRIF!A19","v":86},{"$f":"+RRIF!B19","v":8.9899999999999994E-2},0,0,0,0]
[{"$f":"+RRIF!A20","v":87},{"$f":"+RRIF!B20","v":9.5500000000000002E-2},0,0,0,0]
[{"$f":"+RRIF!A21","v":88},{"$f":"+RRIF!B21","v":0.1021},0,0,0,0]
[{"$f":"+RRIF!A22","v":89},{"$f":"+RRIF!B22","v":0.1099},0,0,0,0]
[{"$f":"+RRIF!A23","v":90},{"$f":"+RRIF!B23","v":0.1192},0,0,0,0]
[{"$f":"+RRIF!A24","v":91},{"$f":"+RRIF!B24","v":0.13059999999999999},0,0,0,0]
[{"$f":"+RRIF!A25","v":92},{"$f":"+RRIF!B25","v":0.1449},0,0,0,0]
[{"$f":"+RRIF!A26","v":93},{"$f":"+RRIF!B26","v":0.16339999999999999},0,0,0,0]
[{"$f":"+RRIF!A27","v":94},{"$f":"+RRIF!B27","v":0.18790000000000001},0,0,0,0]
[{"$f":"+RRIF!A28","v":95},{"$f":"+RRIF!B28","v":0.2},0,0,0,0]
[{"$f":"+RRIF!A29","v":96},{"$f":"+RRIF!B29","v":0.2},0,0,0,0]
[{"$f":"+RRIF!A30","v":97},{"$f":"+RRIF!B30","v":0.2},0,0,0,0]
[{"$f":"+RRIF!A31","v":98},{"$f":"+RRIF!B31","v":0.2},0,0,0,0]
[{"$f":"+RRIF!A32","v":99},{"$f":"+RRIF!B32","v":0.2},0,0,0,0]
[{"$f":"+RRIF!A33","v":100},{"$f":"+RRIF!B33","v":0.2},0,0,0,0]
[{"$f":"+RRIF!A34","v":101},{"$f":"+RRIF!B34","v":0.2},0,0,0,0]
[{"$f":"+RRIF!A35","v":102},{"$f":"+RRIF!B35","v":0.2},0,0,0,0]
[{"$f":"+RRIF!A36","v":103},{"$f":"+RRIF!B36","v":0.2},0,0,0,0]
[{"$f":"+RRIF!A37","v":104},{"$f":"+RRIF!B37","v":0.2},0,0,0,0]
[{"$f":"+RRIF!A38","v":105},{"$f":"+RRIF!B38","v":0.2},0,0,0,0]
[{"$f":"+RRIF!A39","v":106},{"$f":"+RRIF!B39","v":0.2},0,0,0,0]
[{"$f":"+RRIF!A40","v":107},{"$f":"+RRIF!B40","v":0.2},0,0,0,0]
[{"$f":"+RRIF!A41","v":108},{"$f":"+RRIF!B41","v":0.2},0,0,0,0]
[{"$f":"+RRIF!A42","v":109},{"$f":"+RRIF!B42","v":0.2},0,0,0,0]
[{"$f":"+RRIF!A43","v":110},{"$f":"+RRIF!B43","v":0.2},0,0,0,0]

{"sheet":"Estate tax rates","index":14,"n_rows":69,"n_cols":10,"rows_kept":69,"cut":false,"hidden":true,"merged":[[0,1,0,2],[0,4,0,5]]}
[null,"Range",null,null,"Rate",null,null,"Probate fees",null,{"$f":"(Input!$CB$80-Input!$CB$93)","v":0}]
["AB",0,10000,null,35,null,null,{"$f":"+IF(AND($J$1>B2,$J$1<B3),E2,0)","v":0},null,"https://www.alberta.ca/court-fees.aspx"]
[null,{"$f":"+C2+0.01","v":10000.01},25000,null,135,null,null,{"$f":"+IF(AND($J$1>C2,$J$1<B4),E3,0)","v":0}]
[null,{"$f":"+C3+0.01","v":25000.01},125000,null,275,null,null,{"$f":"+IF(AND($J$1>C3,$J$1<B5),E4,0)","v":0}]
[null,{"$f":"+C4+0.01","v":125000.01},250000,null,400,null,null,{"$f":"+IF(AND(J1>C4,J1<B6),E5,0)","v":0}]
[null,{"$f":"+C5+0.01","v":250000.01},null,null,525,null,null,{"$f":"+IF(J1>C5,E6,0)","v":0}]
[null,null,null,null,null,null,null,{"$f":"SUM(H2:H6)","v":0}]
[]
["BC",0,25000,null,0,null,null,{"$f":"+IF(AND(J1>B9,J1<B10),E9,0)","v":0},null,"https://www.bclaws.gov.bc.ca/civix/document/id/complete/statreg/00_99004_01#section2"]
[null,{"$f":"+C9+0.01","v":25000.01},50000,null,6,"per 1000 or part thereof + $200 filing fees",null,{"$f":"+IF(J1<'Estate tax rates'!B10,0,IF(AND(J1>C9,J1<B11),+(CEILING((J1-C9),1000)/1000*E10)+200,(C10-C9)/1000*E10))","v":0}]
[null,{"$f":"+C10+0.01","v":50000.01},null,null,14,"per 1000 or part thereof + $200 filing fees",null,{"$f":"+IF(J1>C10,+(CEILING((J1-C10),1000)/1000*E11)+200,0)","v":0}]
[null,null,null,null,null,null,null,{"$f":"SUM(H9:H11)","v":0}]
[]
["MB",null,null,null,0,null,null,{"$f":"+E14","v":0},null,"https://www.manitobacourts.mb.ca/site/assets/files/1152/2020-11-06_notice_-_elimination_of_probate_charges.pdf"]
[null,null,null,null,null,null,null,{"$f":"SUM(H14)","v":0}]
[]
["NB",0,5000,null,25,null,null,{"$f":"+IF(AND(J1>B17,J1<B18),E17,0)","v":0},null,"http://www.legal-info-legale.nb.ca/en/probate_of_the_will"]
[null,{"$f":"+C17+0.01","v":5000.01},10000,null,50,null,null,{"$f":"+IF(AND(J1>C17,J1<B19),E18,0)","v":0},null,"https://laws.gnb.ca/en/showfulldoc/cs/P-17.1/#anchorga:s_75"]
[null,{"$f":"+C18+0.01","v":10000.01},15000,null,75,null,null,{"$f":"+IF(AND(J1>C18,J1<B20),E19,0)","v":0}]
[null,{"$f":"+C19+0.01","v":15000.01},20000,null,100,null,null,{"$f":"+IF(AND(J1>C19,J1<B21),E20,0)","v":0}]
[null,{"$f":"+C20+0.01","v":20000.009999999998},null,null,5,"per 1000 or part thereof",null,{"$f":"+IF(J1>C20,+(CEILING(J1,1000)/1000*E21),0)","v":0}]
[null,null,null,null,null,null,null,{"$f":"SUM(H17:H21)","v":0}]
[]
["NL",0,1000,null,60,null,null,{"$f":"+IF(AND(J1>B24,J1<B25),E24,0)","v":0},null,"https://www.assembly.nl.ca/legislation/sr/statutes/s13-2.htm#4_"]
[null,{"$f":"+C24+0.01","v":1000.01},null,null,0.6,"per 100 or part thereof",null,{"$f":"+IF(J1>C24,+(CEILING((J1-C24),100)/100*E25)+60,0)","v":0}]
[null,null,null,null,null,null,null,{"$f":"SUM(H24:H25)","v":0}]
[]
["NT",0,10000,null,30,null,null,{"$f":"+IF(AND(J1>B28,J1<B29),E28,0)","v":0},null,"https://www.justice.gov.nt.ca/en/files/legislation/financial-administration/financial-administration.r5.pdf"]
[null,{"$f":"+C28+0.01","v":10000.01},25000,null,110,null,null,{"$f":"+IF(AND(J1>C28,J1<B30),E29,0)","v":0}]
[null,25000.01,125000,null,215,null,null,{"$f":"+IF(AND(J1>C29,J1<B31),E30,0)","v":0}]
[null,125000.01,250000,null,325,null,null,{"$f":"+IF(AND(J1>C30,J1<B32),E31,0)","v":0}]
[null,250000.01,null,null,435,null,null,{"$f":"+IF(J1>C31,E32,0)","v":0}]
[null,null,null,null,null,null,null,{"$f":"SUM(H28:H32)","v":0}]
[]
["NS",0,10000,null,85.6,null,null,{"$f":"+IF(AND(J1>B35,J1<B36),E35,0)","v":0},null,"Probate_Fees_2016.pdf"]
[null,{"$f":"+C35+0.01","v":10000.01},25000,null,215.2,null,null,{"$f":"+IF(AND(J1>C35,J1<B37),E36,0)","v":0},null,"Costs & Fees | The Courts of Nova Scotia"]
[null,25000.01,50000,null,358.15,null,null,{"$f":"+IF(AND(J1>C36,J1<B38),E37,0)","v":0}]
[null,50000.01,100000,null,1002.65,null,null,{"$f":"+IF(AND(J1>C37,J1<B39),E38,0)","v":0}]
[null,100000.01,null,null,16.95,"per 1000 or part thereof + $1002.65",null,{"$f":"+IF(J1>C38,+(CEILING((J1-C38),1000)/1000*E39)+1002.65,0)","v":0}]
[null,null,null,null,null,null,null,{"$f":"SUM(H35:H39)","v":0}]
[]
["NU",0,10000,null,30,null,null,{"$f":"+IF(AND(J1>B42,J1<B43),E42,0)","v":0}]
[null,{"$f":"+C42+0.01","v":10000.01},25000,null,110,null,null,{"$f":"+IF(AND(J1>C42,J1<B44),E43,0)","v":0}]
[null,25000.01,125000,null,215,null,null,{"$f":"+IF(AND(J1>C43,J1<B45),E44,0)","v":0}]
[null,125000.01,250000,null,325,null,null,{"$f":"+IF(AND(J1>C44,J1<B46),E45,0)","v":0}]
[null,250000.01,null,null,425,null,null,{"$f":"+IF(J1>C45,E46,0)","v":0}]
[null,null,null,null,null,null,null,{"$f":"SUM(H42:H46)","v":0}]
[]
["ON",0,50000,null,0,null,null,{"$f":"+IF(AND(J1>B49,J1<B50),E49,0)","v":0},null,"https://www.ontario.ca/page/estate-administration-tax#section-3"]
[null,{"$f":"+C49+0.01","v":50000.01},null,null,15,"per 1000 or part thereof",null,{"$f":"+IF(J1>C49,+(CEILING((J1-C49),1000)/1000*E50),0)","v":0},null,"https://www.attorneygeneral.jus.gov.on.ca/english/estates/calculate.php"]
[null,null,null,null,null,null,null,{"$f":"SUM(H49:H50)","v":0}]
[]
["PE",0,10000,null,50,null,null,{"$f":"+IF(AND(J1>B53,J1<B54),E53,0)","v":0},null,"Probate Act"]
[null,{"$f":"+C53+0.01","v":10000.01},25000,null,100,null,null,{"$f":"+IF(AND(J1>C53,J1<B55),E54,0)","v":0}]
[null,25000.01,50000,null,200,null,null,{"$f":"+IF(AND(J1>C54,J1<B56),E55,0)","v":0}]
[null,50000.01,100000,null,400,null,null,{"$f":"+IF(AND(J1>C55,J1<B57),E56,0)","v":0}]
[null,100000.01,null,null,4,"per 1000 or part thereof + $400",null,{"$f":"+IF(J1>C56,+(CEILING((J1-C56),1000)/1000*E57)+400,0)","v":0}]
[null,null,null,null,null,null,null,{"$f":"SUM(H53:H57)","v":0}]
[]
["QC",null,null,null,241,null,null,{"$f":"+IF(J1>0,E60,0)","v":0},null,"Tarif judiciaire en matière civile - 2026"]
[null,null,null,null,null,null,null,{"$f":"+H60","v":0},null,"See section 15"]
[]
[]
["SK",null,null,null,7,"per 1000 or part thereof + $200 court fees",null,{"$f":"+IF(0<J1>C63,+(CEILING(J1,1000)/1000*E64)+200,0)","v":0},null,"https://sasklawcourts.ca/kings-bench/wills-and-estates/probating-an-estate/"]
[null,null,null,null,null,null,null,{"$f":"SUM(H64)","v":0}]
[]
["YT",0,25000,null,0,null,null,{"$f":"+IF(J1<B68,E67,0)","v":0},null,"https://yukon.ca/sites/yukon.ca/files/jus-pgt-book-3-what-is-probate.pdf"]
[null,{"$f":"+C67+0.01","v":25000.01},null,null,140,null,null,{"$f":"+IF(J1>C67,E68,0)","v":0}]
[null,null,null,null,null,null,null,{"$f":"SUM(H67:H68)","v":0}]

{"sheet":"Estate tax rates French","index":15,"n_rows":69,"n_cols":10,"rows_kept":69,"cut":false,"hidden":true,"merged":[[0,1,0,2],[0,4,0,5]]}
[null,"Range",null,null,"Rate",null,null,"Probate fees",null,{"$f":"(Entrée!$CF$80-Entrée!$CF$93)","v":0}]
["AB",{"$f":"+'Estate tax rates'!B2","v":0},{"$f":"+'Estate tax rates'!C2","v":10000},null,{"$f":"+'Estate tax rates'!E2","v":35},null,null,{"$f":"+IF(AND($J$1>B2,$J$1<B3),E2,0)","v":0},null,"https://www.alberta.ca/court-fees.aspx"]
[null,{"$f":"+'Estate tax rates'!B3","v":10000.01},{"$f":"+'Estate tax rates'!C3","v":25000},null,{"$f":"+'Estate tax rates'!E3","v":135},null,null,{"$f":"+IF(AND($J$1>C2,$J$1<B4),E3,0)","v":0}]
[null,{"$f":"+'Estate tax rates'!B4","v":25000.01},{"$f":"+'Estate tax rates'!C4","v":125000},null,{"$f":"+'Estate tax rates'!E4","v":275},null,null,{"$f":"+IF(AND($J$1>C3,$J$1<B5),E4,0)","v":0}]
[null,{"$f":"+'Estate tax rates'!B5","v":125000.01},{"$f":"+'Estate tax rates'!C5","v":250000},null,{"$f":"+'Estate tax rates'!E5","v":400},null,null,{"$f":"+IF(AND(J1>C4,J1<B6),E5,0)","v":0}]
[null,{"$f":"+'Estate tax rates'!B6","v":250000.01},null,null,{"$f":"+'Estate tax rates'!E6","v":525},null,null,{"$f":"+IF(J1>C5,E6,0)","v":0}]
[null,null,null,null,null,null,null,{"$f":"SUM(H2:H6)","v":0}]
[]
["BC",{"$f":"+'Estate tax rates'!B9","v":0},{"$f":"+'Estate tax rates'!C9","v":25000},null,{"$f":"+'Estate tax rates'!E9","v":0},null,null,{"$f":"+IF(AND(J1>B9,J1<B10),E9,0)","v":0},null,"https://www.bclaws.gov.bc.ca/civix/document/id/complete/statreg/00_99004_01#section2"]
[null,{"$f":"+'Estate tax rates'!B10","v":25000.01},{"$f":"+'Estate tax rates'!C10","v":50000},null,{"$f":"+'Estate tax rates'!E10","v":6},"per 1000 or part thereof + $200 filing fees",null,{"$f":"+IF(J1<'Estate tax rates French'!B10,0,IF(AND(J1>C9,J1<B11),+(CEILING((J1-C9),1000)/1000*E10)+200,(C10-C9)/1000*E10))","v":0}]
[null,{"$f":"+'Estate tax rates'!B11","v":50000.01},null,null,{"$f":"+'Estate tax rates'!E11","v":14},"per 1000 or part thereof + $200 filing fees",null,{"$f":"+IF(J1>C10,+(CEILING((J1-C10),1000)/1000*E11)+200,0)","v":0}]
[null,null,null,null,null,null,null,{"$f":"SUM(H9:H11)","v":0}]
[]
["MB",null,null,null,{"$f":"+'Estate tax rates'!E14","v":0},null,null,{"$f":"+E14","v":0},null,"https://www.manitobacourts.mb.ca/site/assets/files/1152/2020-11-06_notice_-_elimination_of_probate_charges.pdf"]
[null,null,null,null,null,null,null,{"$f":"SUM(H14)","v":0}]
[]
["NB",{"$f":"+'Estate tax rates'!B17","v":0},{"$f":"+'Estate tax rates'!C17","v":5000},null,{"$f":"+'Estate tax rates'!E17","v":25},null,null,{"$f":"+IF(AND(J1>B17,J1<B18),E17,0)","v":0},null,"http://www.legal-info-legale.nb.ca/en/probate_of_the_will"]
[null,{"$f":"+'Estate tax rates'!B18","v":5000.01},{"$f":"+'Estate tax rates'!C18","v":10000},null,{"$f":"+'Estate tax rates'!E18","v":50},null,null,{"$f":"+IF(AND(J1>C17,J1<B19),E18,0)","v":0},null,"https://laws.gnb.ca/en/showfulldoc/cs/P-17.1/#anchorga:s_75"]
[null,{"$f":"+'Estate tax rates'!B19","v":10000.01},{"$f":"+'Estate tax rates'!C19","v":15000},null,{"$f":"+'Estate tax rates'!E19","v":75},null,null,{"$f":"+IF(AND(J1>C18,J1<B20),E19,0)","v":0}]
[null,{"$f":"+'Estate tax rates'!B20","v":15000.01},{"$f":"+'Estate tax rates'!C20","v":20000},null,{"$f":"+'Estate tax rates'!E20","v":100},null,null,{"$f":"+IF(AND(J1>C19,J1<B21),E20,0)","v":0}]
[null,{"$f":"+'Estate tax rates'!B21","v":20000.009999999998},null,null,{"$f":"+'Estate tax rates'!E21","v":5},"per 1000 or part thereof",null,{"$f":"+IF(J1>C20,+(CEILING(J1,1000)/1000*E21),0)","v":0}]
[null,null,null,null,null,null,null,{"$f":"SUM(H17:H21)","v":0}]
[]
["NL",{"$f":"+'Estate tax rates'!B24","v":0},{"$f":"+'Estate tax rates'!C24","v":1000},null,{"$f":"+'Estate tax rates'!E24","v":60},null,null,{"$f":"+IF(AND(J1>B24,J1<B25),E24,0)","v":0},null,"https://www.assembly.nl.ca/legislation/sr/statutes/s13-2.htm#4_"]
[null,{"$f":"+'Estate tax rates'!B25","v":1000.01},null,null,{"$f":"+'Estate tax rates'!E25","v":0.6},"per 100 or part thereof",null,{"$f":"+IF(J1>C24,+(CEILING((J1-C24),100)/100*E25)+60,0)","v":0}]
[null,null,null,null,null,null,null,{"$f":"SUM(H24:H25)","v":0}]
[]
["NT",{"$f":"+'Estate tax rates'!B28","v":0},{"$f":"+'Estate tax rates'!C28","v":10000},null,{"$f":"+'Estate tax rates'!E28","v":30},null,null,{"$f":"+IF(AND(J1>B28,J1<B29),E28,0)","v":0},null,"https://www.justice.gov.nt.ca/en/files/legislation/financial-administration/financial-administration.r5.pdf"]
[null,{"$f":"+'Estate tax rates'!B29","v":10000.01},{"$f":"+'Estate tax rates'!C29","v":25000},null,{"$f":"+'Estate tax rates'!E29","v":110},null,null,{"$f":"+IF(AND(J1>C28,J1<B30),E29,0)","v":0}]
[null,{"$f":"+'Estate tax rates'!B30","v":25000.01},{"$f":"+'Estate tax rates'!C30","v":125000},null,{"$f":"+'Estate tax rates'!E30","v":215},null,null,{"$f":"+IF(AND(J1>C29,J1<B31),E30,0)","v":0}]
[null,{"$f":"+'Estate tax rates'!B31","v":125000.01},{"$f":"+'Estate tax rates'!C31","v":250000},null,{"$f":"+'Estate tax rates'!E31","v":325},null,null,{"$f":"+IF(AND(J1>C30,J1<B32),E31,0)","v":0}]
[null,{"$f":"+'Estate tax rates'!B32","v":250000.01},null,null,{"$f":"+'Estate tax rates'!E32","v":435},null,null,{"$f":"+IF(J1>C31,E32,0)","v":0}]
[null,null,null,null,null,null,null,{"$f":"SUM(H28:H32)","v":0}]
[]
["NS",{"$f":"+'Estate tax rates'!B35","v":0},{"$f":"+'Estate tax rates'!C35","v":10000},null,{"$f":"+'Estate tax rates'!E35","v":85.6},null,null,{"$f":"+IF(AND(J1>B35,J1<B36),E35,0)","v":0},null,"Probate_Fees_2016.pdf"]
[null,{"$f":"+'Estate tax rates'!B36","v":10000.01},{"$f":"+'Estate tax rates'!C36","v":25000},null,{"$f":"+'Estate tax rates'!E36","v":215.2},null,null,{"$f":"+IF(AND(J1>C35,J1<B37),E36,0)","v":0},null,"Costs & Fees | The Courts of Nova Scotia"]
[null,{"$f":"+'Estate tax rates'!B37","v":25000.01},{"$f":"+'Estate tax rates'!C37","v":50000},null,{"$f":"+'Estate tax rates'!E37","v":358.15},null,null,{"$f":"+IF(AND(J1>C36,J1<B38),E37,0)","v":0}]
[null,{"$f":"+'Estate tax rates'!B38","v":50000.01},{"$f":"+'Estate tax rates'!C38","v":100000},null,{"$f":"+'Estate tax rates'!E38","v":1002.65},null,null,{"$f":"+IF(AND(J1>C37,J1<B39),E38,0)","v":0}]
[null,{"$f":"+'Estate tax rates'!B39","v":100000.01},null,null,{"$f":"+'Estate tax rates'!E39","v":16.95},"per 1000 or part thereof + $1002.65",null,{"$f":"+IF(J1>C38,+(CEILING((J1-C38),1000)/1000*E39)+1002.65,0)","v":0}]
[null,null,null,null,null,null,null,{"$f":"SUM(H35:H39)","v":0}]
[]
["NU",{"$f":"+'Estate tax rates'!B42","v":0},{"$f":"+'Estate tax rates'!C42","v":10000},null,{"$f":"+'Estate tax rates'!E42","v":30},null,null,{"$f":"+IF(AND(J1>B42,J1<B43),E42,0)","v":0}]
[null,{"$f":"+'Estate tax rates'!B43","v":10000.01},{"$f":"+'Estate tax rates'!C43","v":25000},null,{"$f":"+'Estate tax rates'!E43","v":110},null,null,{"$f":"+IF(AND(J1>C42,J1<B44),E43,0)","v":0}]
[null,{"$f":"+'Estate tax rates'!B44","v":25000.01},{"$f":"+'Estate tax rates'!C44","v":125000},null,{"$f":"+'Estate tax rates'!E44","v":215},null,null,{"$f":"+IF(AND(J1>C43,J1<B45),E44,0)","v":0}]
[null,{"$f":"+'Estate tax rates'!B45","v":125000.01},{"$f":"+'Estate tax rates'!C45","v":250000},null,{"$f":"+'Estate tax rates'!E45","v":325},null,null,{"$f":"+IF(AND(J1>C44,J1<B46),E45,0)","v":0}]
[null,{"$f":"+'Estate tax rates'!B46","v":250000.01},null,null,{"$f":"+'Estate tax rates'!E46","v":425},null,null,{"$f":"+IF(J1>C45,E46,0)","v":0}]
[null,null,null,null,null,null,null,{"$f":"SUM(H42:H46)","v":0}]
[]
["ON",{"$f":"+'Estate tax rates'!B49","v":0},{"$f":"+'Estate tax rates'!C49","v":50000},null,{"$f":"+'Estate tax rates'!E49","v":0},null,null,{"$f":"+IF(AND(J1>B49,J1<B50),E49,0)","v":0},null,"https://www.ontario.ca/page/estate-administration-tax#section-3"]
[null,{"$f":"+'Estate tax rates'!B50","v":50000.01},null,null,{"$f":"+'Estate tax rates'!E50","v":15},"per 1000 or part thereof",null,{"$f":"+IF(J1>C49,+(CEILING((J1-C49),1000)/1000*E50),0)","v":0},null,"https://www.attorneygeneral.jus.gov.on.ca/english/estates/calculate.php"]
[null,null,null,null,null,null,null,{"$f":"SUM(H49:H50)","v":0}]
[]
["PE",{"$f":"+'Estate tax rates'!B53","v":0},{"$f":"+'Estate tax rates'!C53","v":10000},null,{"$f":"+'Estate tax rates'!E53","v":50},null,null,{"$f":"+IF(AND(J1>B53,J1<B54),E53,0)","v":0},null,"Probate Act"]
[null,{"$f":"+'Estate tax rates'!B54","v":10000.01},{"$f":"+'Estate tax rates'!C54","v":25000},null,{"$f":"+'Estate tax rates'!E54","v":100},null,null,{"$f":"+IF(AND(J1>C53,J1<B55),E54,0)","v":0}]
[null,{"$f":"+'Estate tax rates'!B55","v":25000.01},{"$f":"+'Estate tax rates'!C55","v":50000},null,{"$f":"+'Estate tax rates'!E55","v":200},null,null,{"$f":"+IF(AND(J1>C54,J1<B56),E55,0)","v":0}]
[null,{"$f":"+'Estate tax rates'!B56","v":50000.01},{"$f":"+'Estate tax rates'!C56","v":100000},null,{"$f":"+'Estate tax rates'!E56","v":400},null,null,{"$f":"+IF(AND(J1>C55,J1<B57),E56,0)","v":0}]
[null,{"$f":"+'Estate tax rates'!B57","v":100000.01},null,null,{"$f":"+'Estate tax rates'!E57","v":4},"per 1000 or part thereof + $400",null,{"$f":"+IF(J1>C56,+(CEILING((J1-C56),1000)/1000*E57)+400,0)","v":0}]
[null,null,null,null,null,null,null,{"$f":"SUM(H53:H57)","v":0}]
[]
["QC",null,null,null,{"$f":"+'Estate tax rates'!E60","v":241},null,null,{"$f":"+IF(J1>0,E60,0)","v":0},null,"Tarif judiciaire en matière civile - 2026"]
[null,null,null,null,null,null,null,{"$f":"+H60","v":0},null,"See section 15"]
[]
[]
["SK",null,null,null,{"$f":"+'Estate tax rates'!E64","v":7},"per 1000 or part thereof + $200 court fees",null,{"$f":"+IF(0<J1>C63,+(CEILING(J1,1000)/1000*E64)+200,0)","v":0},null,"https://sasklawcourts.ca/kings-bench/wills-and-estates/probating-an-estate/"]
[null,null,null,null,null,null,null,{"$f":"SUM(H64)","v":0}]
[]
["YT",{"$f":"+'Estate tax rates'!B67","v":0},{"$f":"+'Estate tax rates'!C67","v":25000},null,{"$f":"+'Estate tax rates'!E67","v":0},null,null,{"$f":"+IF(J1<B68,E67,0)","v":0},null,"https://yukon.ca/sites/yukon.ca/files/jus-pgt-book-3-what-is-probate.pdf"]
[null,{"$f":"+'Estate tax rates'!B68","v":25000.01},null,null,{"$f":"+'Estate tax rates'!E68","v":140},null,null,{"$f":"+IF(J1>C67,E68,0)","v":0}]
[null,null,null,null,null,null,null,{"$f":"SUM(H67:H68)","v":0}]